Body Name,Service Division Label,Service Division Code,Organisational Unit,Expenditure Category,Expenditure Code,CIPFA detailed expediture type,CIPFA detailed expediture code,Narrative,Date,Transaction number,Net Amount,Capital and Revenue,Supplier Name,,
South Ribble Borough Council,Capital,,Area 3 - Parks/Leyland East West,Cap Contract Payment,C230,Capital Other Land & Bldgs,,"Improvement works to the overflow car park at Worden Park, Leyland",27/11/2020,0000460359,"10,747.97",Revenue,A & G Landscapes & Groundworks LTD,,
South Ribble Borough Council,Capital,,Area 3 - Parks/Leyland East West,Cap Contract Payment,C230,Capital Other Land & Bldgs,,LABOUR,27/11/2020,0000460359,"1,500.00",Revenue,A & G Landscapes & Groundworks LTD,,
South Ribble Borough Council,Central Support Services,,Area 2 - Waste Transport/Eastern & Central Teams,Materials General,4040,Furniture- Equip & Materials,,match against credHBCC153085,06/11/2020,0000459504,370.80,Revenue,AA UK CV t/a Hydrair Truck & Trailer,,
South Ribble Borough Council,Central Support Services,,Area 2 - Waste Transport/Eastern & Central Teams,Materials General,4040,Furniture- Equip & Materials,,SEE CREDIT HBCC153084 - 1 BRAKE CALIPER VU60 HLE JFC15452,06/11/2020,0000459505,452.78,Revenue,AA UK CV t/a Hydrair Truck & Trailer,,
South Ribble Borough Council,Central Support Services,,Area 2 - Waste Transport/Eastern & Central Teams,Materials General,4040,Furniture- Equip & Materials,,4 x BRAKE DRUMS - VU58JXK - JFC15514,18/11/2020,0000460203,540.00,Revenue,AA UK CV t/a Hydrair Truck & Trailer,,
South Ribble Borough Council,Capital,,Housing,Capital Grant,C570,Deferrd Chgs-Improvemnt Grants,,DFG WORKS TO BATHROOM ADDRESS REDACTED AS PER QUOTE SUPPLIED OF 4300.00- CLIENT 2394.12 ,06/11/2020,0000459875,"1,905.88",Revenue,ABBI PROPERTY SERVICES LTD,,
South Ribble Borough Council,Central Support Services,,Property Services,Reactive Repair & Maintenance,2020,Premises Repair & Mtne,,Please supply the skip going now & replacement . 2x 16yard skips. As per NAME REDACTED Oct 2020,11/11/2020,0000460016,275.00,Revenue,ABLE SKIP HIRE LTD,,
South Ribble Borough Council,Central Support Services,,Information Services,Computer Equipment,4241,Communications & Comuting,,"10 x BT Converse 2200 Black telephones @ 34.95 each, as per quote",13/11/2020,0000460017,349.50,Revenue,ACS SYSTEMS UK LTD,,
South Ribble Borough Council,Central Support Services,,Information Services,Computer Equipment,4241,Communications & Comuting,,"5 x 15.6 HP Laptops 2D231A @ 495 each, as per quote",18/11/2020,0000460164,"2,475.00",Revenue,ACS SYSTEMS UK LTD,,
South Ribble Borough Council,Democratic Represent and  Mgnt,,Democratic Services,Civic & Remembrance Day,463A,Expenses,,FILMING FOR REMEMBRANCE SUNDAY 18 OCTOBER 2020,27/11/2020,0000460123,"1,537.00",Revenue,ACTIVE AV LTD,,
South Ribble Borough Council,Open Spaces,,Area 3 - Parks/Leyland East West,External Contractors Charges,4570,Services,,Flail mow grass to all South Ribble meadow areas marked up on the supplied maps. Spread arisings evenly over the mown area,18/11/2020,0000460211,"4,500.00",Revenue,Adam Lowe - Agricultural Landscaping,,
South Ribble Borough Council,Open Spaces,,Area 3 - Parks/Leyland East West,External Contractors Charges,4570,Services,,Reinstatement to Moons Field - Worden Park,18/11/2020,0000460212,500.00,Revenue,Adam Lowe - Agricultural Landscaping,,
South Ribble Borough Council,Central Support Services,,Area 2 - Waste Transport/Eastern & Central Teams,Materials General,4040,Furniture- Equip & Materials,,1 x recirculation tank cable 1 x console switches AE14AYF JFC15524,13/11/2020,0000460125,255.94,Revenue,AEBI SCHMIDT UK LTD,,
South Ribble Borough Council,Local Tax Collection,,Revenues Plus,Bank Charges,4811,Miscellaneous Expenses,,post office,13/11/2020,0000459987,679.64,Revenue,ALLPAY LTD,,
South Ribble Borough Council,Local Tax Collection,,Revenues Plus,Bank Charges,4811,Miscellaneous Expenses,,paypoint,13/11/2020,0000459987,78.40,Revenue,ALLPAY LTD,,
South Ribble Borough Council,Local Tax Collection,,Revenues Plus,Bank Charges,4811,Miscellaneous Expenses,,webconn,13/11/2020,0000459987,46.00,Revenue,ALLPAY LTD,,
South Ribble Borough Council,Open Spaces,,Property Services,GM Refurbishment,4657,Expenses,,works as per NAME REDACTED survey needs to be refurbishment for all the building with the exception of the garage extension ,11/11/2020,0000459878,290.00,Revenue,APEC Environmental Ltd,,
South Ribble Borough Council,Capital,,Area 2 - Waste Transport/Eastern & Central Teams,Cap Vehicles,C440,Capital Vehicles,,"For 2 x Kangoo Maxi ZE vans, with Air / Con and Rear sensors, as per quote reference 283859.",13/11/2020,0000459577,"20,773.05",Revenue,Arnold Clark Automobiles Ltd,,
South Ribble Borough Council,Capital,,Area 2 - Waste Transport/Eastern & Central Teams,Cap Vehicles,C440,Capital Vehicles,,1st reg,13/11/2020,0000459577,55.00,Revenue,Arnold Clark Automobiles Ltd,,
South Ribble Borough Council,Capital,,Area 2 - Waste Transport/Eastern & Central Teams,Cap Vehicles,C440,Capital Vehicles,,PICG GRANT,13/11/2020,0000459577,"-4,578.73",Revenue,Arnold Clark Automobiles Ltd,,
South Ribble Borough Council,Capital,,Housing,Cap Contract Payment,C230,Capital Other Land & Bldgs,,"To carry out conversion works and create 9 self contained flats as tendered at Pearson House, Station Road, Bamber Bridge",04/11/2020,0000459824,"21,592.00",Revenue,ASH BARN CONSTRUCTION LTD,,
South Ribble Borough Council,Capital,,Housing,Cap Contract Payment,C230,Capital Other Land & Bldgs,,"To carry out conversion works and create 9 self contained flats as tendered at Pearson House, Station Road, Bamber Bridge",04/11/2020,0000459825,"20,693.00",Revenue,ASH BARN CONSTRUCTION LTD,,
South Ribble Borough Council,Capital,,Housing,Cap Contract Payment,C230,Capital Other Land & Bldgs,,"To carry out conversion works and create 9 self contained flats as tendered at Pearson House, Station Road, Bamber Bridge",04/11/2020,0000459826,"23,735.00",Revenue,ASH BARN CONSTRUCTION LTD,,
South Ribble Borough Council,Capital,,Housing,Cap Contract Payment,C230,Capital Other Land & Bldgs,,"To carry out conversion works and create 9 self contained flats as tendered at Pearson House, Station Road, Bamber Bridge",06/11/2020,0000459877,"24,047.00",Revenue,ASH BARN CONSTRUCTION LTD,,
South Ribble Borough Council,Central Support Services,,Information Services,Applications Systems,4248,Communications & Comuting,,Annual Maintenance Contract on audiovisual equipment for period 26/11/20 - 25/11/21,27/11/2020,0000460527,"6,580.00",Revenue,AUDITEL,,
South Ribble Borough Council,Central Support Services,,Information Services,Applications Systems,4248,Communications & Comuting,,IDEA 8 Single User: 1 x licence for the period 01/11/2020  31/10/2021,04/11/2020,0000459778,750.00,Revenue,AUDITWARE SYSTEMS LIMITED,,
South Ribble Borough Council,Central Support Services,,Area 2 - Waste Transport/Eastern & Central Teams,Materials General,4040,Furniture- Equip & Materials,,1 x wing kit PJ69NWG JFC15597,13/11/2020,0000460103,487.79,Revenue,BALMERS GM LTD,,
South Ribble Borough Council,Capital,,Information Services,Misc Capital Payments,C234,Capital Other Land & Bldgs,,29 x Samsung Galaxy phones @ 189.50 each,13/11/2020,0000459915,"5,495.50",Revenue,BANNER GROUP LTD,,
South Ribble Borough Council,Short Term Creditors,,Shared Financial Services,Amount Paid,0030,Balance Sheet,,28 february,30/11/2020,0000454034,"5,833.05",Revenue,Barclays Bank Plc,,
South Ribble Borough Council,Short Term Creditors,,Shared Financial Services,Amount Paid,0030,Balance Sheet,,28th april 20,30/11/2020,0000456304,"13,164.19",Revenue,Barclays Bank Plc,,
South Ribble Borough Council,Short Term Creditors,,Shared Financial Services,Amount Paid,0030,Balance Sheet,,28 JUNE 2020,30/11/2020,0000457281,"1,747.62",Revenue,Barclays Bank Plc,,
South Ribble Borough Council,Short Term Creditors,,Shared Financial Services,Amount Paid,0030,Balance Sheet,,28 may 2020,30/11/2020,0000457283,"2,555.54",Revenue,Barclays Bank Plc,,
South Ribble Borough Council,Short Term Creditors,,Shared Financial Services,Amount Paid,0030,Balance Sheet,,28th March 2020,30/11/2020,0000457620,"4,462.68",Revenue,Barclays Bank Plc,,
South Ribble Borough Council,Short Term Creditors,,Shared Financial Services,Amount Paid,0030,Balance Sheet,,28 aug 2020,30/11/2020,0000458618,"5,466.40",Revenue,Barclays Bank Plc,,
South Ribble Borough Council,Short Term Creditors,,Shared Financial Services,Amount Paid,0030,Balance Sheet,,28th JULY 2020,30/11/2020,0000458619,"3,114.96",Revenue,Barclays Bank Plc,,
South Ribble Borough Council,Short Term Creditors,,Shared Financial Services,Amount Paid,0030,Balance Sheet,,12 oct 2020,30/11/2020,0000459556,"3,300.54",Revenue,Barclays Bank Plc,,
South Ribble Borough Council,Capital,,Regeneration,Cap Contract Payment,C230,Capital Other Land & Bldgs,,Please provide a contaminated land survey at bent lane Leyland as  agreed with SRBC regeneration department,27/11/2020,0000460477,500.00,Revenue,BEK Enviro,,
South Ribble Borough Council,Surplus or Deficit on Trading,,Property Services,Reactive Repair & Maintenance,2020,Premises Repair & Mtne,,Extra order to cover the remainder of the sports pavilions to include remedial works  for 2020/2021,11/11/2020,0000459991,393.50,Revenue,BELEC ELECTRICAL LTD,,
South Ribble Borough Council,Surplus or Deficit on Trading,,Property Services,Reactive Repair & Maintenance,2020,Premises Repair & Mtne,,ADDRESS REDACTED electrical repairs and dismantling wall to expose mains unit as per NAME REDACTED instruction,20/11/2020,0000460300,340.00,Revenue,BELEC ELECTRICAL LTD,,
South Ribble Borough Council,Surplus or Deficit on Trading,,Property Services,Reactive Repair & Maintenance,2020,Premises Repair & Mtne,,ADDRESS REDACTED. To remove portion wall  an take away debris as per NAME REDACTED instruction,20/11/2020,0000460300,250.00,Revenue,BELEC ELECTRICAL LTD,,
South Ribble Borough Council,Recreation & Sport,,Healthy Communities,Publicity & Promotion,4842,Miscellaneous Expenses,,24 Places on Sports Leaders Programme @ Worden,20/11/2020,0000460301,804.00,Revenue,British Sports Trust,,
South Ribble Borough Council,Recreation & Sport,,Healthy Communities,Publicity & Promotion,4842,Miscellaneous Expenses,,Additional Sports Leaders,20/11/2020,0000460301,48.00,Revenue,British Sports Trust,,
South Ribble Borough Council,Central Support Services,,Neighbourhood Admin & Support,Materials General,4040,Furniture- Equip & Materials,,HANSON FAST SET POST MIX  20kg - 02110336,20/11/2020,0000459911,304.80,Revenue,C & W BERRY LTD,,
South Ribble Borough Council,Central Support Services,,Neighbourhood Admin & Support,Materials General,4040,Furniture- Equip & Materials,,K Post Rapid Set Post Concrete - 20kg bag - 02110340,20/11/2020,0000460296,304.80,Revenue,C & W BERRY LTD,,
South Ribble Borough Council,Open Spaces,,Area 3 - Parks/Leyland East West,External Contractors Charges,4570,Services,,TO CARRY OUT URGENT WORKS TO THE UNSAFE MEMORIALS WITHIN CLOSED GRAVE YARD AT ST MARYS CHURCH ,27/11/2020,0000460505,"3,000.00",Revenue,C B Price & Son Ltd,,
South Ribble Borough Council,Open Spaces,,Area 3 - Parks/Leyland East West,External Contractors Charges,4570,Services,,TO CARRY OUT URGENT WORKS TO THE UNSAFE MEMORIALS WITHIN CLOSED GRAVE YARD AT ST MARYS CHURCH ,27/11/2020,0000460506,"3,000.00",Revenue,C B Price & Son Ltd,,
South Ribble Borough Council,Open Spaces,,Area 3 - Parks/Leyland East West,External Contractors Charges,4570,Services,,TO CARRY OUT URGENT WORKS TO THE UNSAFE MEMORIALS WITHIN CLOSED GRAVE YARD AT ST MARYS CHURCH ,27/11/2020,0000460507,"3,000.00",Revenue,C B Price & Son Ltd,,
South Ribble Borough Council,Central Support Services,,Property Services,Reactive Repair & Maintenance,2020,Premises Repair & Mtne,,"Annual PAT Testing 2020/2021 for South Ribble Borough Council - at Civic Centre, Leyland PR25 1DH",11/11/2020,0000460018,"1,105.00",Revenue,Calbarrie Compliance Services Ltd,,
South Ribble Borough Council,Capital,,Information Services,Misc Capital Payments,C234,Capital Other Land & Bldgs,,Upgrade to e-Claim and e-Cic,20/11/2020,0000460170,"2,465.55",Revenue,CAPITA BUSINESS SERVICES LTD,,
South Ribble Borough Council,Central Support Services,,Planning,Agency Staff,1121,Salaries,,Remote validation support for Development Management,18/11/2020,0000459771,516.00,Revenue,CAPITA PROPERTY AND INFRASTRUCTURE LTD,,
South Ribble Borough Council,Central Support Services,,HR & Communications,Short Course,1402,Training Expenses,,NAMES REDACTED TO ATTEND IOSH TRAINING AT CENTAUR TRAINING CENTRE ON 19-21 OCTOBER 2020,11/11/2020,0000459954,790.00,Revenue,Centaur Training Services (North West) Ltd,,
South Ribble Borough Council,Central Support Services,,HR & Communications,Publications General,4140,Printing- Stat & Office Expens,,JOB ADVERT FOR TEMPORARY HOUSING ENFORCEMENT OFFICER.,20/11/2020,0000460020,800.00,Revenue,CHARTERED INST OF ENVIRONMENTAL HEALTH,,
South Ribble Borough Council,Central Support Services,,Property Services,Reactive Repair & Maintenance,2020,Premises Repair & Mtne,,Fault  report to  Chubb regarding one of the cameras Civic Centre  look at this at the same time as visit to MSD - 8 way PSU ,11/11/2020,0000459921,340.86,Revenue,CHUBB LTD,,
South Ribble Borough Council,Central Support Services,,Property Services,Reactive Repair & Maintenance,2020,Premises Repair & Mtne,,2020 / 2021 fees for the service of the gas suppression system at the Civic Centre - ref SQCMMB050319-A,18/11/2020,0000460129,318.24,Revenue,CHUBB LTD,,
South Ribble Borough Council,Central Support Services,,Area 2 - Waste Transport/Eastern & Central Teams,Materials General,4040,Furniture- Equip & Materials,,1 x air compressor cylinder head PJ62UCM JFC15422,13/11/2020,0000459884,771.65,Revenue,CICELEY COMMERCIALS LTD,,
South Ribble Borough Council,Economic Development,,Regeneration,Miscellaneous Expenses,4851,Miscellaneous Expenses,,Delivery of phase 1 Leyland Christmas lights as agreed with SRBC Regeneration dept.,13/11/2020,0000460097,"4,980.00",Revenue,City Illuiminations Ltd,,
South Ribble Borough Council,Homelessness,,Homelessness,Contributions to Other Bodies,4730,Grants & Subscriptions,,"Civica payments of M/HB077373 (5,073.62 due 16/09 ) M/HB077391 (2,742.86 due 16/09 )",25/11/2020,0000460217,"4,228.01",Revenue,CIVICA UK LTD,,
South Ribble Borough Council,Short Term Creditors,,HR & Communications,Amount Paid,0030,Balance Sheet,,APRIL 2020 - CHILDCARE VOUCHERS,30/11/2020,0000456149,"1,429.00",Revenue,COMPUTERSHARE VOUCHER SERVICES,,
South Ribble Borough Council,Short Term Creditors,,HR & Communications,Amount Paid,0030,Balance Sheet,,MAY 2020 - CHILDCARE VOUCHERS,30/11/2020,0000456845,"1,817.00",Revenue,COMPUTERSHARE VOUCHER SERVICES,,
South Ribble Borough Council,Short Term Creditors,,HR & Communications,Amount Paid,0030,Balance Sheet,,JUNE 2020 - CHILDCARE VOUCHERS,30/11/2020,0000457711,"1,875.00",Revenue,COMPUTERSHARE VOUCHER SERVICES,,
South Ribble Borough Council,Short Term Creditors,,HR & Communications,Amount Paid,0030,Balance Sheet,,JULY 2020 - CHILDCARE VOUCHERS,30/11/2020,0000457712,"1,970.50",Revenue,COMPUTERSHARE VOUCHER SERVICES,,
South Ribble Borough Council,Short Term Creditors,,HR & Communications,Amount Paid,0030,Balance Sheet,,OCTOBER 2020 - CHILDCARE VOUCHERS,30/11/2020,0000459497,"2,003.00",Revenue,COMPUTERSHARE VOUCHER SERVICES,,
South Ribble Borough Council,Short Term Creditors,,HR & Communications,Amount Paid,0030,Balance Sheet,,NOVEMBER 2020 - CHILDCARE VOUCHERS,30/11/2020,0000460022,"2,003.00",Revenue,COMPUTERSHARE VOUCHER SERVICES,,
South Ribble Borough Council,Regulatory Services,,Environmental Health,External Contractors Charges,4570,Services,,Roof repair works to roof - ADDRESS REDACTED per NAME REDACTED.,11/11/2020,0000459955,430.00,Revenue,Cornerstone Building & Maintenance Ltd,,
South Ribble Borough Council,Central Support Services,,Information Services,Computer Equipment,4241,Communications & Comuting,,5 Lenovo Laptops at 459 each,04/11/2020,0000459779,"2,345.00",Revenue,CPC Re: COMBINED PRECISION COMPONENTS PLC,,
South Ribble Borough Council,Local Tax Collection,,Revenues Plus,Postage General,4291,Communications & Comuting,,Postage October to March 2021,18/11/2020,0000459712,337.02,Revenue,CRITIQOM,,
South Ribble Borough Council,Local Tax Collection,,Revenues Plus,Postage General,4291,Communications & Comuting,,Postage October to March 2021,18/11/2020,0000459974,441.82,Revenue,CRITIQOM,,
South Ribble Borough Council,Local Tax Collection,,Revenues Plus,Postage General,4291,Communications & Comuting,,Postage October to March 2021,18/11/2020,0000459994,"1,108.82",Revenue,CRITIQOM,,
South Ribble Borough Council,Local Tax Collection,,Revenues Plus,Postage General,4291,Communications & Comuting,,Postage October to March 2021,25/11/2020,0000460222,469.83,Revenue,CRITIQOM,,
South Ribble Borough Council,Local Tax Collection,,Revenues Plus,Postage General,4291,Communications & Comuting,,Postage October to March 2021,25/11/2020,0000460316,424.84,Revenue,CRITIQOM,,
South Ribble Borough Council,Central Support Services,,Legal,Legal,4821,Miscellaneous Expenses,,PROFESSIONAL SERVICES IN RELATION TO AN EMPLOYMENT TRIBUNAL MATTER,20/11/2020,0000460167,"6,750.00",Revenue,DAC BEACHCROFT LLP,,
South Ribble Borough Council,Central Support Services,,Property Services,Reactive Repair & Maintenance,2020,Premises Repair & Mtne,,Annual Contract for maintenance 2020/2021 of 1 x  McSmart 240cr Industrial Water Chiller  and 1 x McQuay Air Handling Unit ,25/11/2020,0000460350,653.25,Revenue,DAIKIN APPLIED SERVICE,,
South Ribble Borough Council,Open Spaces,,Area 3 - Parks/Leyland East West,GM Refurbishment,4657,Expenses,,Cut out and repair damaged area under the group swing at Worden Park as per your quotation dated 24.9.20,18/11/2020,0000459676,980.00,Revenue,DCM Projects Ltd,,
South Ribble Borough Council,Open Spaces,,Area 3 - Parks/Leyland East West,GM Refurbishment,4657,Expenses,,Perimeter repairs to the rubber surfacing at both the junior and toddler areas at Birch Avenue Penwortham as per quotation ,18/11/2020,0000459748,"6,580.00",Revenue,DCM Projects Ltd,,
South Ribble Borough Council,Capital,,Area 2 - Waste Transport/Eastern & Central Teams,Cap Vehicles,C440,Capital Vehicles,,12 Months Road Fund Licence - VK20NVV,13/11/2020,0000459547,670.00,Revenue,DENNIS EAGLE LTD,,
South Ribble Borough Council,Central Support Services,,Area 2 - Waste Transport/Eastern & Central Teams,Materials General,4040,Furniture- Equip & Materials,,HEATER BLOWER - VO65KPX - JFC15520,13/11/2020,0000459962,361.81,Revenue,DENNIS EAGLE LTD,,
South Ribble Borough Council,Central Support Services,,Area 2 - Waste Transport/Eastern & Central Teams,External Contractors Charges,4570,Services,,2 x call outs to rectify steering fault (12.10.20 and 29.10.20) VO65 KPX JFC15475 & JFC15604,13/11/2020,0000459975,618.80,Revenue,DENNIS EAGLE LTD,,
South Ribble Borough Council,Central Support Services,,Area 2 - Waste Transport/Eastern & Central Teams,Materials General,4040,Furniture- Equip & Materials,,1 x hopper floor VO65KRE JFC15643,13/11/2020,0000460065,"1,031.56",Revenue,DENNIS EAGLE LTD,,
South Ribble Borough Council,Central Support Services,,Area 2 - Waste Transport/Eastern & Central Teams,Materials General,4040,Furniture- Equip & Materials,,"1 hub cap, 1 nox sensor & 1 hand lever switch VU58 JXK JFC15695",27/11/2020,0000460482,575.07,Revenue,DENNIS EAGLE LTD,,
South Ribble Borough Council,Open Spaces,,Neighbourhood Admin & Support,Clothing and Uniforms,4410,"Clothes,uniform & laundry",,Pfanner Santis Class 2 Chainsaw Boot Size 10 - TSBOOT653/45,18/11/2020,0000459654,220.00,Revenue,DICK LEIGH,,
South Ribble Borough Council,Open Spaces,,Neighbourhood Admin & Support,Clothing and Uniforms,4410,"Clothes,uniform & laundry",,Haix Protector Pro 2.0 Class 1 Chainsaw Boot Size 7.5 - WW60201907.5,18/11/2020,0000459654,225.00,Revenue,DICK LEIGH,,
South Ribble Borough Council,Open Spaces,,Neighbourhood Admin & Support,Clothing and Uniforms,4410,"Clothes,uniform & laundry",,8mm Eye 2 Eye 90cm long Ocean Polyester - TSTEU030/8,18/11/2020,0000459654,44.76,Revenue,DICK LEIGH,,
South Ribble Borough Council,Central Support Services,,Neighbourhood Admin & Support,Clothing and Uniforms,4410,"Clothes,uniform & laundry",,CHAINSAW GLOVES - HUSQVARNA - 579380209 - SIZE 8,25/11/2020,0000460347,93.50,Revenue,DICK LEIGH,,
South Ribble Borough Council,Central Support Services,,Neighbourhood Admin & Support,Clothing and Uniforms,4410,"Clothes,uniform & laundry",,CHAINSAW HELMETS � HUSQVARNA - UH-576412402,25/11/2020,0000460347,176.00,Revenue,DICK LEIGH,,
South Ribble Borough Council,Recreation & Sport,,Healthy Communities,Dev ftarget Sports-Coaching,4894,Miscellaneous Expenses,,NAME REDACTED - Level 2 ETM Qualification,20/11/2020,0000460132,499.00,Revenue,Diverse Trainers,,
South Ribble Borough Council,Open Spaces,,Area 3 - Parks/Leyland East West,External Contractors Charges,4570,Services,,25 Years Being Green @ North Lodge Worden Park 14th & 15th October 2020,27/11/2020,0000459709,"1,520.00",Revenue,Dramatic Moves Ltd,,
South Ribble Borough Council,Central Support Services,,HR & Communications,Occupational Health,1408,Training Expenses,,OH Referral for NAME REDACTED,20/11/2020,0000460246,275.00,Revenue,DUMFRIES & GALLOWAY HEALTH BOARD,,
South Ribble Borough Council,Surplus or Deficit on Trading,,Property Services,Electricity,2303,Energy Costs,,Final Electiricy Bill ADDRESS REDACTED,18/11/2020,0000460251,454.59,Revenue,E.ON,,
South Ribble Borough Council,Central Support Services,,Information Services,Telecomms - Mobile,4260,Communications & Comuting,,01 Nov 2020,11/11/2020,0000459988,"4,327.02",Revenue,EE Ltd,,
South Ribble Borough Council,Central Support Services,,Information Services,Reference Books,4142,Printing- Stat & Office Expens,,Subscription renewal for Local Government Chronicle -Digital & Print  5 copies- 2020/21,25/11/2020,0000460365,"1,559.00",Revenue,Emap Publishing Ltd,,
South Ribble Borough Council,Local Tax Collection,,Revenues Plus,Stationery General,4130,Printing- Stat & Office Expens,,"25,000 C5 white council tax envelopes",04/11/2020,0000459721,418.75,Revenue,Encore Envelopes Limited,,
South Ribble Borough Council,Central Support Services,,Area 2 - Waste Transport/Eastern & Central Teams,Hiring Expenses,3212,Contract Hire & Operating Leas,,Hire of 70/30 RCV On hire 5th May 2020 3 weeks @ 700.00 per week,13/11/2020,0000459827,700.00,Revenue,Euro Municipals Ltd,,
South Ribble Borough Council,Central Support Services,,Area 2 - Waste Transport/Eastern & Central Teams,Hiring Expenses,3212,Contract Hire & Operating Leas,,Hire of 70/30 RCV On hire 5th May 2020 3 weeks @ 700.00 per week,13/11/2020,0000459828,700.00,Revenue,Euro Municipals Ltd,,
South Ribble Borough Council,Central Support Services,,Area 2 - Waste Transport/Eastern & Central Teams,Hiring Expenses,3212,Contract Hire & Operating Leas,,Hire of 70/30 RCV On hire 5th May 2020 3 weeks @ 700.00 per week,13/11/2020,0000459829,560.00,Revenue,Euro Municipals Ltd,,
South Ribble Borough Council,Central Support Services,,Area 2 - Waste Transport/Eastern & Central Teams,Hiring Expenses,3212,Contract Hire & Operating Leas,,Delivery,13/11/2020,0000459829,300.00,Revenue,Euro Municipals Ltd,,
South Ribble Borough Council,Central Support Services,,Area 2 - Waste Transport/Eastern & Central Teams,Hiring Expenses,3212,Contract Hire & Operating Leas,,Continued hire of 70/30 RCV - VN12KYA 6 weeks @ 700.00,27/11/2020,0000459830,700.00,Revenue,Euro Municipals Ltd,,
South Ribble Borough Council,Central Support Services,,Area 2 - Waste Transport/Eastern & Central Teams,Hiring Expenses,3212,Contract Hire & Operating Leas,,Hire of 70/30 RCV On hire 5th May 2020 3 weeks @ 700.00 per week,13/11/2020,0000459831,700.00,Revenue,Euro Municipals Ltd,,
South Ribble Borough Council,Central Support Services,,Area 2 - Waste Transport/Eastern & Central Teams,Materials General,4040,Furniture- Equip & Materials,,Second Hand Engine PJ62 UCM JFC15422,06/11/2020,0000459908,"2,500.00",Revenue,Euro Municipals Ltd,,
South Ribble Borough Council,Central Support Services,,Area 2 - Waste Transport/Eastern & Central Teams,Hiring Expenses,3212,Contract Hire & Operating Leas,,Hire of 70/30 refuse truck VN63 UAH for 2 weeks 19th - 30th October 2020,27/11/2020,0000459910,"2,100.00",Revenue,Euro Municipals Ltd,,
South Ribble Borough Council,Central Support Services,,Area 2 - Waste Transport/Eastern & Central Teams,Hiring Expenses,3212,Contract Hire & Operating Leas,,Hire for 2 weeks - 1 x 70/30 refuge truck RCV plus delivery,27/11/2020,0000459910,"2,300.00",Revenue,Euro Municipals Ltd,,
South Ribble Borough Council,Capital,,Area 2 - Waste Transport/Eastern & Central Teams,Cap Vehicles,C440,Capital Vehicles,,Tractor fitted with rear side arm flail mower as per Specification and signed submitted tender dated 20th March 2020.,20/11/2020,0000459677,"37,221.85",Revenue,F R SHARROCK LTD,,
South Ribble Borough Council,Capital,,Area 2 - Waste Transport/Eastern & Central Teams,Cap Vehicles,C440,Capital Vehicles,,first reg,20/11/2020,0000459677,55.00,Revenue,F R SHARROCK LTD,,
South Ribble Borough Council,Waste Collection,,Area 2 - Waste Transport/Eastern & Central Teams,External Contractors Charges,4570,Services,,Additional WEEE Collections September 2020,06/11/2020,0000459549,676.06,Revenue,FCC Environment Services (UK) Ltd,,
South Ribble Borough Council,Waste Collection,,Area 2 - Waste Transport/Eastern & Central Teams,External Contractors Charges,4570,Services,,Additional Bulky Waste Collections September 2020,06/11/2020,0000459549,"1,206.15",Revenue,FCC Environment Services (UK) Ltd,,
South Ribble Borough Council,Short Term Creditors,,Area 2 - Waste Transport/Eastern & Central Teams,Amount Paid,0030,Balance Sheet,,retention,06/11/2020,0000459549,-103.52,Revenue,FCC Environment Services (UK) Ltd,,
South Ribble Borough Council,Waste Collection,,Area 2 - Waste Transport/Eastern & Central Teams,External Contractors Charges,4570,Services,,Residual Waste Collections October 2020,27/11/2020,0000460115,"46,869.90",Revenue,FCC Environment Services (UK) Ltd,,
South Ribble Borough Council,Recycling,,Area 2 - Waste Transport/Eastern & Central Teams,External Contractors Charges,4570,Services,,Dry Recycling (Non Terraced) Collections October 2020,27/11/2020,0000460115,"47,981.92",Revenue,FCC Environment Services (UK) Ltd,,
South Ribble Borough Council,Recycling,,Area 2 - Waste Transport/Eastern & Central Teams,External Contractors Charges,4570,Services,,Dry Recyclable (Terraced) Collections October 2020,27/11/2020,0000460115,"2,283.78",Revenue,FCC Environment Services (UK) Ltd,,
South Ribble Borough Council,Recycling,,Area 2 - Waste Transport/Eastern & Central Teams,External Contractors Charges,4570,Services,,Organic Waste (Non Terraced) Collections October 2020,27/11/2020,0000460115,"33,222.59",Revenue,FCC Environment Services (UK) Ltd,,
South Ribble Borough Council,Trade Waste,,Area 2 - Waste Transport/Eastern & Central Teams,External Contractors Charges,4570,Services,,Schedule 2 Properties Collections October 2020,27/11/2020,0000460115,"1,910.50",Revenue,FCC Environment Services (UK) Ltd,,
South Ribble Borough Council,Trade Waste,,Area 2 - Waste Transport/Eastern & Central Teams,External Contractors Charges,4570,Services,,Commercial Collections October 2020,27/11/2020,0000460115,"7,439.27",Revenue,FCC Environment Services (UK) Ltd,,
South Ribble Borough Council,Waste Collection,,Area 2 - Waste Transport/Eastern & Central Teams,External Contractors Charges,4570,Services,,Bulky Waste Collections October 2020,27/11/2020,0000460115,"1,032.37",Revenue,FCC Environment Services (UK) Ltd,,
South Ribble Borough Council,Waste Collection,,Area 2 - Waste Transport/Eastern & Central Teams,External Contractors Charges,4570,Services,,WEEE Collections October 2020,27/11/2020,0000460115,387.78,Revenue,FCC Environment Services (UK) Ltd,,
South Ribble Borough Council,Waste Collection,,Area 2 - Waste Transport/Eastern & Central Teams,External Contractors Charges,4570,Services,,Clinical Waste Collections October 2020,27/11/2020,0000460115,660.62,Revenue,FCC Environment Services (UK) Ltd,,
South Ribble Borough Council,Waste Collection,,Area 2 - Waste Transport/Eastern & Central Teams,External Contractors Charges,4570,Services,,Replacement Bins October 2020,27/11/2020,0000460115,"5,000.00",Revenue,FCC Environment Services (UK) Ltd,,
South Ribble Borough Council,Waste Collection,,Area 2 - Waste Transport/Eastern & Central Teams,External Contractors Charges,4570,Services,,Additional Properties October 2020,27/11/2020,0000460115,"4,116.80",Revenue,FCC Environment Services (UK) Ltd,,
South Ribble Borough Council,Short Term Creditors,,Area 2 - Waste Transport/Eastern & Central Teams,Amount Paid,0030,Balance Sheet,,ret refuse,27/11/2020,0000460115,"-3,120.86",Revenue,FCC Environment Services (UK) Ltd,,
South Ribble Borough Council,Short Term Creditors,,Area 2 - Waste Transport/Eastern & Central Teams,Amount Paid,0030,Balance Sheet,,ret recyc,27/11/2020,0000460115,"-4,174.41",Revenue,FCC Environment Services (UK) Ltd,,
South Ribble Borough Council,Waste Collection,,Area 2 - Waste Transport/Eastern & Central Teams,External Contractors Charges,4570,Services,,Additional Clinical Waste Collections October 2020,27/11/2020,0000460116,424.58,Revenue,FCC Environment Services (UK) Ltd,,
South Ribble Borough Council,Short Term Creditors,,Area 2 - Waste Transport/Eastern & Central Teams,Amount Paid,0030,Balance Sheet,,retention,27/11/2020,0000460116,-21.23,Revenue,FCC Environment Services (UK) Ltd,,
South Ribble Borough Council,Waste Collection,,Area 2 - Waste Transport/Eastern & Central Teams,External Contractors Charges,4570,Services,,Additional WEEE Collections October 2020,27/11/2020,0000460133,781.42,Revenue,FCC Environment Services (UK) Ltd,,
South Ribble Borough Council,Waste Collection,,Area 2 - Waste Transport/Eastern & Central Teams,External Contractors Charges,4570,Services,,Additional Bulky Waste Collections October 2020,27/11/2020,0000460133,"1,467.95",Revenue,FCC Environment Services (UK) Ltd,,
South Ribble Borough Council,Short Term Creditors,,Area 2 - Waste Transport/Eastern & Central Teams,Amount Paid,0030,Balance Sheet,,ret,27/11/2020,0000460133,-123.72,Revenue,FCC Environment Services (UK) Ltd,,
South Ribble Borough Council,Central Support Services,,Neighbourhood Admin & Support,Materials General,4040,Furniture- Equip & Materials,,FOOTBALL PITCH LINE MARKER PAINT 10LTRS - PITCHMARKER Q2,25/11/2020,0000460208,497.04,Revenue,Fleet Line Markers Limited,,
South Ribble Borough Council,Recreation & Sport,,Healthy Communities,Publicity & Promotion,4842,Miscellaneous Expenses,,Mens 21.75 x 14 = 304.50 Ladies 21.75 x 3 = 65.25 + Vat Total 369.75 + Vat = 443.70,25/11/2020,0000460292,369.75,Revenue,Galaxy,,
South Ribble Borough Council,Central Support Services,,Area 2 - Waste Transport/Eastern & Central Teams,Materials General,4040,Furniture- Equip & Materials,,Barrier Arm 5012241 (BIN G015),06/11/2020,0000459746,374.28,Revenue,GEESINK NORBA LTD,,
South Ribble Borough Council,Central Support Services,,Area 2 - Waste Transport/Eastern & Central Teams,Materials General,4040,Furniture- Equip & Materials,,Bottom Tailgate Strip (BIN G033),06/11/2020,0000459746,60.31,Revenue,GEESINK NORBA LTD,,
South Ribble Borough Council,Central Support Services,,Area 2 - Waste Transport/Eastern & Central Teams,Materials General,4040,Furniture- Equip & Materials,,transport,06/11/2020,0000459746,30.00,Revenue,GEESINK NORBA LTD,,
South Ribble Borough Council,Central Support Services,,Area 2 - Waste Transport/Eastern & Central Teams,Materials General,4040,Furniture- Equip & Materials,,Tailgate Seal (BIN G032),06/11/2020,0000459746,230.10,Revenue,GEESINK NORBA LTD,,
South Ribble Borough Council,Capital,,Area 2 - Waste Transport/Eastern & Central Teams,Cap Vehicles,C440,Capital Vehicles,,Supply & delivery of 1 RCV as per quote dated 27 Sept 2019 for Lot 3 only.,13/11/2020,0000459772,"201,084.69",Revenue,GEESINK NORBA LTD,,
South Ribble Borough Council,Central Support Services,,Area 2 - Waste Transport/Eastern & Central Teams,Materials General,4040,Furniture- Equip & Materials,,1 x seal - BIN G032,13/11/2020,0000460105,115.05,Revenue,GEESINK NORBA LTD,,
South Ribble Borough Council,Central Support Services,,Area 2 - Waste Transport/Eastern & Central Teams,Materials General,4040,Furniture- Equip & Materials,,1 x rail/strip - BIN G033,13/11/2020,0000460105,72.03,Revenue,GEESINK NORBA LTD,,
South Ribble Borough Council,Central Support Services,,Area 2 - Waste Transport/Eastern & Central Teams,Materials General,4040,Furniture- Equip & Materials,,1 x safety arm - BIN G015,13/11/2020,0000460105,124.76,Revenue,GEESINK NORBA LTD,,
South Ribble Borough Council,Central Support Services,,Area 2 - Waste Transport/Eastern & Central Teams,Materials General,4040,Furniture- Equip & Materials,,1 x proxy switch - BIN G008,13/11/2020,0000460105,55.48,Revenue,GEESINK NORBA LTD,,
South Ribble Borough Council,Central Support Services,,Area 2 - Waste Transport/Eastern & Central Teams,Materials General,4040,Furniture- Equip & Materials,,4 x Rubber Bobbins- BIN G034,13/11/2020,0000460105,18.36,Revenue,GEESINK NORBA LTD,,
South Ribble Borough Council,Central Support Services,,Area 2 - Waste Transport/Eastern & Central Teams,Materials General,4040,Furniture- Equip & Materials,,filters and steering controller kit PO61MJJ JFC15628,13/11/2020,0000460033,785.83,Revenue,GIBSONS GARDEN MACHINERY LTD,,
South Ribble Borough Council,Surplus or Deficit on Trading,,Property Services,Reactive Repair & Maintenance,2020,Premises Repair & Mtne,,"Annual Contract for maintenance of flagpoles 2020/2021 at various sites 1. Worden Park, 2. Hurst Grange Park, 3. Civic Centre",18/11/2020,0000460136,968.00,Revenue,GLASSFIBRE FLAGPOLES LTD,,
South Ribble Borough Council,Corporate Management,,Shared Financial Services,Merchant Charges,4816,Miscellaneous Expenses,,mar 19,30/11/2020,0000456322,7.00,Revenue,GLOBAL PAYMENTS (GPUK LLP),,
South Ribble Borough Council,Corporate Management,,Shared Financial Services,Merchant Charges,4816,Miscellaneous Expenses,,mar,30/11/2020,0000456322,"3,693.92",Revenue,GLOBAL PAYMENTS (GPUK LLP),,
South Ribble Borough Council,Corporate Management,,Shared Financial Services,Merchant Charges,4816,Miscellaneous Expenses,,mar,30/11/2020,0000456323,7.00,Revenue,GLOBAL PAYMENTS (GPUK LLP),,
South Ribble Borough Council,Corporate Management,,Shared Financial Services,Merchant Charges,4816,Miscellaneous Expenses,,mar,30/11/2020,0000456323,"2,218.87",Revenue,GLOBAL PAYMENTS (GPUK LLP),,
South Ribble Borough Council,Corporate Management,,Shared Financial Services,Merchant Charges,4816,Miscellaneous Expenses,,mar 19,30/11/2020,0000456324,7.00,Revenue,GLOBAL PAYMENTS (GPUK LLP),,
South Ribble Borough Council,Corporate Management,,Shared Financial Services,Merchant Charges,4816,Miscellaneous Expenses,,mar,30/11/2020,0000456324,975.42,Revenue,GLOBAL PAYMENTS (GPUK LLP),,
South Ribble Borough Council,Corporate Management,,Shared Financial Services,Merchant Charges,4816,Miscellaneous Expenses,,mar,30/11/2020,0000456325,7.00,Revenue,GLOBAL PAYMENTS (GPUK LLP),,
South Ribble Borough Council,Corporate Management,,Shared Financial Services,Merchant Charges,4816,Miscellaneous Expenses,,mar,30/11/2020,0000456325,"3,253.38",Revenue,GLOBAL PAYMENTS (GPUK LLP),,
South Ribble Borough Council,Corporate Management,,Shared Financial Services,Merchant Charges,4816,Miscellaneous Expenses,,jan,30/11/2020,0000456326,7.00,Revenue,GLOBAL PAYMENTS (GPUK LLP),,
South Ribble Borough Council,Corporate Management,,Shared Financial Services,Merchant Charges,4816,Miscellaneous Expenses,,jan,30/11/2020,0000456326,"1,339.60",Revenue,GLOBAL PAYMENTS (GPUK LLP),,
South Ribble Borough Council,Corporate Management,,Shared Financial Services,Merchant Charges,4816,Miscellaneous Expenses,,jan,30/11/2020,0000456327,7.00,Revenue,GLOBAL PAYMENTS (GPUK LLP),,
South Ribble Borough Council,Corporate Management,,Shared Financial Services,Merchant Charges,4816,Miscellaneous Expenses,,jan,30/11/2020,0000456327,"2,768.35",Revenue,GLOBAL PAYMENTS (GPUK LLP),,
South Ribble Borough Council,Corporate Management,,Shared Financial Services,Merchant Charges,4816,Miscellaneous Expenses,,jan,30/11/2020,0000456328,7.00,Revenue,GLOBAL PAYMENTS (GPUK LLP),,
South Ribble Borough Council,Corporate Management,,Shared Financial Services,Merchant Charges,4816,Miscellaneous Expenses,,jan,30/11/2020,0000456328,"1,085.55",Revenue,GLOBAL PAYMENTS (GPUK LLP),,
South Ribble Borough Council,Corporate Management,,Shared Financial Services,Merchant Charges,4816,Miscellaneous Expenses,,feb,30/11/2020,0000456329,7.00,Revenue,GLOBAL PAYMENTS (GPUK LLP),,
South Ribble Borough Council,Corporate Management,,Shared Financial Services,Merchant Charges,4816,Miscellaneous Expenses,,feb,30/11/2020,0000456329,853.13,Revenue,GLOBAL PAYMENTS (GPUK LLP),,
South Ribble Borough Council,Corporate Management,,Shared Financial Services,Merchant Charges,4816,Miscellaneous Expenses,,feb,30/11/2020,0000456330,7.00,Revenue,GLOBAL PAYMENTS (GPUK LLP),,
South Ribble Borough Council,Corporate Management,,Shared Financial Services,Merchant Charges,4816,Miscellaneous Expenses,,feb,30/11/2020,0000456330,"2,299.58",Revenue,GLOBAL PAYMENTS (GPUK LLP),,
South Ribble Borough Council,Corporate Management,,Shared Financial Services,Merchant Charges,4816,Miscellaneous Expenses,,feb 20,30/11/2020,0000456331,7.00,Revenue,GLOBAL PAYMENTS (GPUK LLP),,
South Ribble Borough Council,Corporate Management,,Shared Financial Services,Merchant Charges,4816,Miscellaneous Expenses,,feb,30/11/2020,0000456331,914.94,Revenue,GLOBAL PAYMENTS (GPUK LLP),,
South Ribble Borough Council,Corporate Management,,Shared Financial Services,Merchant Charges,4816,Miscellaneous Expenses,,mar 20,30/11/2020,0000456332,7.00,Revenue,GLOBAL PAYMENTS (GPUK LLP),,
South Ribble Borough Council,Corporate Management,,Shared Financial Services,Merchant Charges,4816,Miscellaneous Expenses,,mar,30/11/2020,0000456332,"3,260.00",Revenue,GLOBAL PAYMENTS (GPUK LLP),,
South Ribble Borough Council,Corporate Management,,Shared Financial Services,Merchant Charges,4816,Miscellaneous Expenses,,dec,30/11/2020,0000456334,7.00,Revenue,GLOBAL PAYMENTS (GPUK LLP),,
South Ribble Borough Council,Corporate Management,,Shared Financial Services,Merchant Charges,4816,Miscellaneous Expenses,,dec,30/11/2020,0000456334,862.76,Revenue,GLOBAL PAYMENTS (GPUK LLP),,
South Ribble Borough Council,Corporate Management,,Shared Financial Services,Merchant Charges,4816,Miscellaneous Expenses,,,30/11/2020,0000456335,7.00,Revenue,GLOBAL PAYMENTS (GPUK LLP),,
South Ribble Borough Council,Corporate Management,,Shared Financial Services,Merchant Charges,4816,Miscellaneous Expenses,,,30/11/2020,0000456335,"1,372.41",Revenue,GLOBAL PAYMENTS (GPUK LLP),,
South Ribble Borough Council,Corporate Management,,Shared Financial Services,Merchant Charges,4816,Miscellaneous Expenses,,oct,30/11/2020,0000456336,7.00,Revenue,GLOBAL PAYMENTS (GPUK LLP),,
South Ribble Borough Council,Corporate Management,,Shared Financial Services,Merchant Charges,4816,Miscellaneous Expenses,,oct,30/11/2020,0000456336,"2,254.63",Revenue,GLOBAL PAYMENTS (GPUK LLP),,
South Ribble Borough Council,Corporate Management,,Shared Financial Services,Merchant Charges,4816,Miscellaneous Expenses,,oct,30/11/2020,0000456337,7.00,Revenue,GLOBAL PAYMENTS (GPUK LLP),,
South Ribble Borough Council,Corporate Management,,Shared Financial Services,Merchant Charges,4816,Miscellaneous Expenses,,oct,30/11/2020,0000456337,"1,003.00",Revenue,GLOBAL PAYMENTS (GPUK LLP),,
South Ribble Borough Council,Corporate Management,,Shared Financial Services,Merchant Charges,4816,Miscellaneous Expenses,,,30/11/2020,0000456338,7.00,Revenue,GLOBAL PAYMENTS (GPUK LLP),,
South Ribble Borough Council,Corporate Management,,Shared Financial Services,Merchant Charges,4816,Miscellaneous Expenses,,nov,30/11/2020,0000456338,"1,158.24",Revenue,GLOBAL PAYMENTS (GPUK LLP),,
South Ribble Borough Council,Corporate Management,,Shared Financial Services,Merchant Charges,4816,Miscellaneous Expenses,,nov,30/11/2020,0000456339,7.00,Revenue,GLOBAL PAYMENTS (GPUK LLP),,
South Ribble Borough Council,Corporate Management,,Shared Financial Services,Merchant Charges,4816,Miscellaneous Expenses,,nov,30/11/2020,0000456339,"2,028.26",Revenue,GLOBAL PAYMENTS (GPUK LLP),,
South Ribble Borough Council,Corporate Management,,Shared Financial Services,Merchant Charges,4816,Miscellaneous Expenses,,nov,30/11/2020,0000456340,7.00,Revenue,GLOBAL PAYMENTS (GPUK LLP),,
South Ribble Borough Council,Corporate Management,,Shared Financial Services,Merchant Charges,4816,Miscellaneous Expenses,,nov,30/11/2020,0000456340,795.25,Revenue,GLOBAL PAYMENTS (GPUK LLP),,
South Ribble Borough Council,Corporate Management,,Shared Financial Services,Merchant Charges,4816,Miscellaneous Expenses,,dec,30/11/2020,0000456341,7.00,Revenue,GLOBAL PAYMENTS (GPUK LLP),,
South Ribble Borough Council,Corporate Management,,Shared Financial Services,Merchant Charges,4816,Miscellaneous Expenses,,dec,30/11/2020,0000456341,"1,299.84",Revenue,GLOBAL PAYMENTS (GPUK LLP),,
South Ribble Borough Council,Corporate Management,,Shared Financial Services,Merchant Charges,4816,Miscellaneous Expenses,,dec,30/11/2020,0000456342,7.00,Revenue,GLOBAL PAYMENTS (GPUK LLP),,
South Ribble Borough Council,Corporate Management,,Shared Financial Services,Merchant Charges,4816,Miscellaneous Expenses,,dec,30/11/2020,0000456342,"1,339.46",Revenue,GLOBAL PAYMENTS (GPUK LLP),,
South Ribble Borough Council,Corporate Management,,Shared Financial Services,Merchant Charges,4816,Miscellaneous Expenses,,mar,30/11/2020,0000456366,7.00,Revenue,GLOBAL PAYMENTS (GPUK LLP),,
South Ribble Borough Council,Corporate Management,,Shared Financial Services,Merchant Charges,4816,Miscellaneous Expenses,,mar,30/11/2020,0000456366,"1,731.86",Revenue,GLOBAL PAYMENTS (GPUK LLP),,
South Ribble Borough Council,Surplus or Deficit on Trading,,Property Services,Reactive Repair & Maintenance,2020,Premises Repair & Mtne,,"To remove 2 Gas Warm air heaters, Mobile tower. Removal of flue, Blank the flue spigots.Cap the gas pipework.Remove th",18/11/2020,0000460137,985.50,Revenue,GOS Heating Ltd,,
South Ribble Borough Council,Capital,,Regeneration,Cap Contract Payment,C230,Capital Other Land & Bldgs,,"As per NAME REDACTED 1.5mx60mm dia SW MRTP Stake, 25mm Holdfast HR25 HD rubber belting (15m), 25mm Holdfast",20/11/2020,0000460245,809.58,Revenue,Green-Tech Ltd,,
South Ribble Borough Council,Corporate Management,,Area 3 - Parks/Leyland East West,Miscellaneous Expenses,4851,Miscellaneous Expenses,,Supatrax & Ramps. Grey for the main trackway Alternate black and yellow for the edging in equal amounts of male and female ,27/11/2020,0000459965,"5,765.11",Revenue,Groundtrax Systems Ltd,,
South Ribble Borough Council,Central Support Services,,Area 2 - Waste Transport/Eastern & Central Teams,Materials General,4040,Furniture- Equip & Materials,,4 sets BRAKE PADS BIN 539,06/11/2020,0000459894,340.00,Revenue,H & J SERVICES LTD,,
South Ribble Borough Council,Central Support Services,,Area 2 - Waste Transport/Eastern & Central Teams,Materials General,4040,Furniture- Equip & Materials,,Filters for Stores,13/11/2020,0000459983,599.37,Revenue,H & J SERVICES LTD,,
South Ribble Borough Council,Recreation & Sport,,Healthy Communities,Publicity & Promotion,4842,Miscellaneous Expenses,,Bronze Sponsorship package for the charity event #MilesBetterTogether (`Factory to Festival`) on the 27/7/20 - 8/8/20.,04/11/2020,0000459678,300.00,Revenue,Helping Hand,,
South Ribble Borough Council,Capital,,Information Services,Misc Capital Payments,C234,Capital Other Land & Bldgs,,"Imperago configuration and Training. Based on 8 days 6,800 SS0 setup cost 900.",11/11/2020,0000460025,"3,850.00",Revenue,HFX LTD,,
South Ribble Borough Council,Short Term Creditors,,Shared Financial Services,Amount Received,0140,Balance Sheet,,,20/11/2020,0000459552,251.00,Revenue,HM REVENUE & CUSTOMS,,
South Ribble Borough Council,Central Support Services,,Property Services,Reactive Repair & Maintenance,2020,Premises Repair & Mtne,,Removal of asbestos in the ground floor office at the Civic Centre,06/11/2020,0000459745,780.00,Revenue,Holden Building Solutions Limited,,
South Ribble Borough Council,Surplus or Deficit on Trading,,Property Services,Reactive Repair & Maintenance,2020,Premises Repair & Mtne,,"As per NAME REDACTED, Wall Repair, Maintenance & Repairs, Erect scaffold, Engineer to visit with Bricklayer to determine",06/11/2020,0000459925,"4,421.96",Revenue,Holden Building Solutions Limited,,
South Ribble Borough Council,Surplus or Deficit on Trading,,Property Services,Reactive Repair & Maintenance,2020,Premises Repair & Mtne,,LABOUR,06/11/2020,0000459925,"5,000.00",Revenue,Holden Building Solutions Limited,,
South Ribble Borough Council,Central Support Services,,Property Services,Reactive Repair & Maintenance,2020,Premises Repair & Mtne,,Cost of additional works to the painting contract at the Civic centre as agreed with the facilities officer,06/11/2020,0000459926,896.61,Revenue,Holden Building Solutions Limited,,
South Ribble Borough Council,Central Support Services,,Property Services,Reactive Repair & Maintenance,2020,Premises Repair & Mtne,,LABOUR,06/11/2020,0000459926,"2,286.80",Revenue,Holden Building Solutions Limited,,
South Ribble Borough Council,Open Spaces,,Area 3 - Parks/Leyland East West,GM Refurbishment,4657,Expenses,,"Updates to Schedule of Works, Hurst Grange Park Coach House",20/11/2020,0000460290,"1,590.00",Revenue,Ian Brew QS Consultancy,,
South Ribble Borough Council,Capital,,Area 3 - Parks/Leyland East West,Cap Contract Payment,C230,Capital Other Land & Bldgs,,Preparation of Contract Documents and attendance at Pre Contract Meeting - Hurst Grange Coach House,20/11/2020,0000460290,920.40,Revenue,Ian Brew QS Consultancy,,
South Ribble Borough Council,Open Spaces,,Area 3 - Parks/Leyland East West,GM Refurbishment,4657,Expenses,,Updated pre-tender assessment and further tender analysis report,20/11/2020,0000460290,"2,650.00",Revenue,Ian Brew QS Consultancy,,
South Ribble Borough Council,Central Support Services,,Information Services,Data Protection,4813,Miscellaneous Expenses,,SRBC Data Protection fee renewal for period 20/12/20 - 19/12/21,13/11/2020,0000460138,"2,900.00",Revenue,INFORMATION COMMISSIONER,,
South Ribble Borough Council,Surplus or Deficit on Trading,,Property Services,Reactive Repair & Maintenance,2020,Premises Repair & Mtne,,As per NAME REDACTED for the Moss Side CC Heating and hot water control unit. Replacement immersion on hot water ,20/11/2020,0000460307,365.00,Revenue,J Whittle plumbing & heating,,
South Ribble Borough Council,Surplus or Deficit on Trading,,Property Services,Reactive Repair & Maintenance,2020,Premises Repair & Mtne,,As per NAME REDACTED instructions This is to undertake the EPC inspections at ADDRESSES REDACTED,18/11/2020,0000459680,210.00,Revenue,Jane Needham Ltd,,
South Ribble Borough Council,Surplus or Deficit on Trading,,Property Services,Reactive Repair & Maintenance,2020,Premises Repair & Mtne,,EPC ADDRESS REDACTED,18/11/2020,0000459680,175.00,Revenue,Jane Needham Ltd,,
South Ribble Borough Council,Central Support Services,,Neighbourhood Admin & Support,Operational Equip & Tools,4010,Furniture- Equip & Materials,,BROOM FAITHFUL STIFF BASS BROOM + HANDLE & STAY 24`` - AIBRBAS24H-TFF83002,20/11/2020,0000460289,12.04,Revenue,JEWSON LTD,,
South Ribble Borough Council,Central Support Services,,Neighbourhood Admin & Support,Operational Equip & Tools,4010,Furniture- Equip & Materials,,WHEELBARROW 85LT SILVER HOUSE - EQHAEG01,20/11/2020,0000460289,39.45,Revenue,JEWSON LTD,,
South Ribble Borough Council,Central Support Services,,Neighbourhood Admin & Support,Operational Equip & Tools,4010,Furniture- Equip & Materials,,RAWL BOLT - M10 X 50L BOX 25,20/11/2020,0000460289,67.48,Revenue,JEWSON LTD,,
South Ribble Borough Council,Central Support Services,,Neighbourhood Admin & Support,Operational Equip & Tools,4010,Furniture- Equip & Materials,,SPIRIT LEVEL STANLEY FAT MAX XL - STA043609-THSTAN21,20/11/2020,0000460289,63.43,Revenue,JEWSON LTD,,
South Ribble Borough Council,Central Support Services,,Neighbourhood Admin & Support,Operational Equip & Tools,4010,Furniture- Equip & Materials,,BUILDERS LEVEL - 36`` STABILA 70/90 - STB7090-TSTB1514,20/11/2020,0000460289,57.80,Revenue,JEWSON LTD,,
South Ribble Borough Council,Central Support Services,,Neighbourhood Admin & Support,Materials General,4040,Furniture- Equip & Materials,,NAILS  3� ROUNDHEAD 25KG - SpeCR009,20/11/2020,0000460289,71.23,Revenue,JEWSON LTD,,
South Ribble Borough Council,Central Support Services,,Neighbourhood Admin & Support,Materials General,4040,Furniture- Equip & Materials,,NAILS  4� ROUNDHEAD 25KG,20/11/2020,0000460289,71.24,Revenue,JEWSON LTD,,
South Ribble Borough Council,Central Support Services,,Property Services,Reactive Repair & Maintenance,2020,Premises Repair & Mtne,,JFN to undertake a 100% �Non-Intrusive� Passive Fire Survey across the whole premise. The survey includes for both the,25/11/2020,0000460441,580.00,Revenue,JFN Integrated Solutions Ltd,,
South Ribble Borough Council,Central Support Services,,Property Services,Reactive Repair & Maintenance,2020,Premises Repair & Mtne,,"JFN to undertake a 100% �Non-Intrusive� Passive Fire Survey across the whole premise, not include a Fire Door survey.",25/11/2020,0000460442,840.00,Revenue,JFN Integrated Solutions Ltd,,
South Ribble Borough Council,Open Spaces,,Regeneration,External Contractors Charges,4570,Services,,Please provide reinstatement of damaged surfaces as per NAME REDACTED amount  875,20/11/2020,0000460244,700.00,Revenue,John Wade Groundworks Ltd t/a Wade Group,,
South Ribble Borough Council,Central Support Services,,Area 2 - Waste Transport/Eastern & Central Teams,Materials General,4040,Furniture- Equip & Materials,,2 x wheel bearings 1 x seal 1 x o-ring GX19DZF JFC15535,13/11/2020,0000459897,378.91,Revenue,JOHNSTON SWEEPERS LTD,,
South Ribble Borough Council,Development Control,,Shared Financial Services,Advertising,4841,Miscellaneous Expenses,,Press Notices in the Lancashire Evening Post,27/11/2020,0000460156,810.00,Revenue,JPI Media - JOHNSTON PUBLISHING (NORTH WEST),,
South Ribble Borough Council,Recycling,,Area 2 - Waste Transport/Eastern & Central Teams,Publicity & Promotion,4842,Miscellaneous Expenses,,Livery for 3 x RCV as per quotation QU-0024,06/11/2020,0000459329,972.00,Revenue,KDJ Dezigns LTD T/A Sign Dezign,,
South Ribble Borough Council,Economic Development,,Property Services,Professional Fees,4510,Services,,To provide a report for Leyland Town Deal Valuation and Market Advice as agreed with the Director of Planning & Property,04/11/2020,0000459820,"3,500.00",Revenue,Keppie Massie,,
South Ribble Borough Council,Homelessness,,Homelessness,Contributions to Other Bodies,4730,Grants & Subscriptions,,SRBC Tenancy Support Set-Nov 2020/21  7500 Additional hours Jul 875 Additional hours Aug 875,25/11/2020,0000460366,"9,250.00",Revenue,KEY UNLOCKING FUTURES LTD,,
South Ribble Borough Council,Homelessness,,Homelessness,Contributions to Other Bodies,4730,Grants & Subscriptions,,Q3 2020/21 Housing advice and mediation 4875,25/11/2020,0000460367,"4,875.00",Revenue,KEY UNLOCKING FUTURES LTD,,
South Ribble Borough Council,Homelessness,,Homelessness,Contributions to Other Bodies,4730,Grants & Subscriptions,,2nd payment for Pre Tenancy training 2020/21 2500,25/11/2020,0000460368,"2,500.00",Revenue,KEY UNLOCKING FUTURES LTD,,
South Ribble Borough Council,Surplus or Deficit on Trading,,Property Services,Reactive Repair & Maintenance,2020,Premises Repair & Mtne,,2020 / 2021 contract for water hygiene monitoring at Gregson Lane Pavilion,27/11/2020,0000459904,46.25,Revenue,KNOWSLEY BLD & ENVIRONMENTAL SERVICES LT,,
South Ribble Borough Council,Surplus or Deficit on Trading,,Property Services,Reactive Repair & Maintenance,2020,Premises Repair & Mtne,,2020 / 2021 contract for water hygiene monitoring at Hern Avenue Pavilion,27/11/2020,0000459904,46.25,Revenue,KNOWSLEY BLD & ENVIRONMENTAL SERVICES LT,,
South Ribble Borough Council,Surplus or Deficit on Trading,,Property Services,Reactive Repair & Maintenance,2020,Premises Repair & Mtne,,2020 / 2021 contract for water hygiene monitoring at Higher Walton Pavilion,27/11/2020,0000459904,46.25,Revenue,KNOWSLEY BLD & ENVIRONMENTAL SERVICES LT,,
South Ribble Borough Council,Surplus or Deficit on Trading,,Property Services,Reactive Repair & Maintenance,2020,Premises Repair & Mtne,,2020 / 2021 contract for water hygiene monitoring at Holme Pavilion,27/11/2020,0000459904,46.25,Revenue,KNOWSLEY BLD & ENVIRONMENTAL SERVICES LT,,
South Ribble Borough Council,Surplus or Deficit on Trading,,Property Services,Reactive Repair & Maintenance,2020,Premises Repair & Mtne,,2020 / 2021 contract for water hygiene monitoring at Hutton Pavilion,27/11/2020,0000459904,46.25,Revenue,KNOWSLEY BLD & ENVIRONMENTAL SERVICES LT,,
South Ribble Borough Council,Surplus or Deficit on Trading,,Property Services,Reactive Repair & Maintenance,2020,Premises Repair & Mtne,,2020 / 2021 contract for water hygiene monitoring at Kingsfold pavilion,27/11/2020,0000459904,54.00,Revenue,KNOWSLEY BLD & ENVIRONMENTAL SERVICES LT,,
South Ribble Borough Council,Surplus or Deficit on Trading,,Property Services,Reactive Repair & Maintenance,2020,Premises Repair & Mtne,,2020 / 2021 contract for water hygiene monitoring at sports pavilions Worden Park (formerly long pavilion),27/11/2020,0000459904,46.25,Revenue,KNOWSLEY BLD & ENVIRONMENTAL SERVICES LT,,
South Ribble Borough Council,Surplus or Deficit on Trading,,Property Services,Reactive Repair & Maintenance,2020,Premises Repair & Mtne,,2019 / 2020 contract for water hygiene monitoring at Moss Side Pavilion,27/11/2020,0000459904,54.00,Revenue,KNOWSLEY BLD & ENVIRONMENTAL SERVICES LT,,
South Ribble Borough Council,Surplus or Deficit on Trading,,Property Services,Reactive Repair & Maintenance,2020,Premises Repair & Mtne,,2020 / 2021 contract for water hygiene monitoring at Much Hoole Pavilion,27/11/2020,0000459904,46.25,Revenue,KNOWSLEY BLD & ENVIRONMENTAL SERVICES LT,,
South Ribble Borough Council,Surplus or Deficit on Trading,,Property Services,Reactive Repair & Maintenance,2020,Premises Repair & Mtne,,2020 / 2021 contract for water hygiene monitoring at Penwortham Holme,27/11/2020,0000459904,46.25,Revenue,KNOWSLEY BLD & ENVIRONMENTAL SERVICES LT,,
South Ribble Borough Council,Surplus or Deficit on Trading,,Property Services,Reactive Repair & Maintenance,2020,Premises Repair & Mtne,,2020 / 2021 contract for water hygiene monitoring at St Cuthbert`s Pavilion,27/11/2020,0000459904,46.25,Revenue,KNOWSLEY BLD & ENVIRONMENTAL SERVICES LT,,
South Ribble Borough Council,Surplus or Deficit on Trading,,Property Services,Reactive Repair & Maintenance,2020,Premises Repair & Mtne,,2020 / 2021 contract for water hygiene monitoring at Withy Grove Pavilion,27/11/2020,0000459904,54.00,Revenue,KNOWSLEY BLD & ENVIRONMENTAL SERVICES LT,,
South Ribble Borough Council,Surplus or Deficit on Trading,,Property Services,Reactive Repair & Maintenance,2020,Premises Repair & Mtne,,2020 / 2021 contract for water hygiene monitoring at Holland House Farm Pavilion,27/11/2020,0000459904,46.25,Revenue,KNOWSLEY BLD & ENVIRONMENTAL SERVICES LT,,
South Ribble Borough Council,Surplus or Deficit on Trading,,Property Services,Reactive Repair & Maintenance,2020,Premises Repair & Mtne,,"2020 / 2021 contract for water hygiene monitoring at The Derby Wing, Worden Park",27/11/2020,0000459904,43.75,Revenue,KNOWSLEY BLD & ENVIRONMENTAL SERVICES LT,,
South Ribble Borough Council,Surplus or Deficit on Trading,,Property Services,Reactive Repair & Maintenance,2020,Premises Repair & Mtne,,2020 / 2021 contract for water hygiene monitoring at Carr Street Community Centre,27/11/2020,0000459904,43.75,Revenue,KNOWSLEY BLD & ENVIRONMENTAL SERVICES LT,,
South Ribble Borough Council,Surplus or Deficit on Trading,,Property Services,Reactive Repair & Maintenance,2020,Premises Repair & Mtne,,2020 / 2021 contract for water hygiene monitoring at Higher Walton Community Centre,27/11/2020,0000459904,43.75,Revenue,KNOWSLEY BLD & ENVIRONMENTAL SERVICES LT,,
South Ribble Borough Council,Surplus or Deficit on Trading,,Property Services,Reactive Repair & Maintenance,2020,Premises Repair & Mtne,,2020 / 2021 contract for water hygiene monitoring at Moss Side Community Centre,27/11/2020,0000459904,43.75,Revenue,KNOWSLEY BLD & ENVIRONMENTAL SERVICES LT,,
South Ribble Borough Council,Surplus or Deficit on Trading,,Property Services,Reactive Repair & Maintenance,2020,Premises Repair & Mtne,,2020 / 2021 contract for water hygiene monitoring at Worden Arts & Craft Centre,27/11/2020,0000459904,59.25,Revenue,KNOWSLEY BLD & ENVIRONMENTAL SERVICES LT,,
South Ribble Borough Council,Economic Development,,Property Services,Reactive Repair & Maintenance,2020,Premises Repair & Mtne,,2020 /2021 contract for water hygiene monitoring at Leyland Market,27/11/2020,0000459904,43.75,Revenue,KNOWSLEY BLD & ENVIRONMENTAL SERVICES LT,,
South Ribble Borough Council,Surplus or Deficit on Trading,,Property Services,Reactive Repair & Maintenance,2020,Premises Repair & Mtne,,2020 / 2021  contract for water hygiene monitoring at Hurst Grange Park,27/11/2020,0000459904,43.75,Revenue,KNOWSLEY BLD & ENVIRONMENTAL SERVICES LT,,
South Ribble Borough Council,Regulatory Services,,Property Services,Reactive Repair & Maintenance,2020,Premises Repair & Mtne,,"2020 / 2021 contract for water hygiene monitoring at Crossroads toilets, Worden Park",27/11/2020,0000459904,44.25,Revenue,KNOWSLEY BLD & ENVIRONMENTAL SERVICES LT,,
South Ribble Borough Council,Regulatory Services,,Property Services,Reactive Repair & Maintenance,2020,Premises Repair & Mtne,,2020 / 2021 contract for water hygiene monitoring at Hope Terrace Public toilets,27/11/2020,0000459904,46.00,Revenue,KNOWSLEY BLD & ENVIRONMENTAL SERVICES LT,,
South Ribble Borough Council,Surplus or Deficit on Trading,,Property Services,Reactive Repair & Maintenance,2020,Premises Repair & Mtne,,2020 / 2021 contract for water hygiene monitoring at Longton Brick Croft,27/11/2020,0000459904,52.50,Revenue,KNOWSLEY BLD & ENVIRONMENTAL SERVICES LT,,
South Ribble Borough Council,Regulatory Services,,Property Services,Reactive Repair & Maintenance,2020,Premises Repair & Mtne,,"2020 / 2021 contract for water hygiene monitoring at Playground toilets, Worden Park",27/11/2020,0000459904,52.50,Revenue,KNOWSLEY BLD & ENVIRONMENTAL SERVICES LT,,
South Ribble Borough Council,Surplus or Deficit on Trading,,Property Services,Reactive Repair & Maintenance,2020,Premises Repair & Mtne,,2020 / 2021 contract for water hygiene monitoring at SR Museum & Exhibition Centre,27/11/2020,0000459904,52.50,Revenue,KNOWSLEY BLD & ENVIRONMENTAL SERVICES LT,,
South Ribble Borough Council,Regulatory Services,,Property Services,Reactive Repair & Maintenance,2020,Premises Repair & Mtne,,2020 / 2021 contract for water hygiene monitoring at Withy Grove public toilets,27/11/2020,0000459904,46.50,Revenue,KNOWSLEY BLD & ENVIRONMENTAL SERVICES LT,,
South Ribble Borough Council,Central Support Services,,Property Services,Reactive Repair & Maintenance,2020,Premises Repair & Mtne,,"2020 / 2021 contract for water hygiene monitoring at the Civic Centre, Leyland",27/11/2020,0000459904,40.00,Revenue,KNOWSLEY BLD & ENVIRONMENTAL SERVICES LT,,
South Ribble Borough Council,Central Support Services,,Property Services,Reactive Repair & Maintenance,2020,Premises Repair & Mtne,,2020 / 2021 contract for water hygiene monitoring at Moss Side Depot,27/11/2020,0000459904,112.75,Revenue,KNOWSLEY BLD & ENVIRONMENTAL SERVICES LT,,
South Ribble Borough Council,Surplus or Deficit on Trading,,Property Services,Reactive Repair & Maintenance,2020,Premises Repair & Mtne,,2020 / 2021 contract for water hygiene monitoring at Longton Pavilion,27/11/2020,0000459904,46.25,Revenue,KNOWSLEY BLD & ENVIRONMENTAL SERVICES LT,,
South Ribble Borough Council,Central Support Services,,Property Services,Reactive Repair & Maintenance,2020,Premises Repair & Mtne,,Additional 6 monthly sampling at Moss Side Depot,27/11/2020,0000459904,30.00,Revenue,KNOWSLEY BLD & ENVIRONMENTAL SERVICES LT,,
South Ribble Borough Council,Surplus or Deficit on Trading,,Property Services,Reactive Repair & Maintenance,2020,Premises Repair & Mtne,,2020 / 2021 contract for water hygiene monitoring at Gregson Lane Pavilion,27/11/2020,0000459927,46.25,Revenue,KNOWSLEY BLD & ENVIRONMENTAL SERVICES LT,,
South Ribble Borough Council,Surplus or Deficit on Trading,,Property Services,Reactive Repair & Maintenance,2020,Premises Repair & Mtne,,2020 / 2021 contract for water hygiene monitoring at Hern Avenue Pavilion,27/11/2020,0000459927,46.25,Revenue,KNOWSLEY BLD & ENVIRONMENTAL SERVICES LT,,
South Ribble Borough Council,Surplus or Deficit on Trading,,Property Services,Reactive Repair & Maintenance,2020,Premises Repair & Mtne,,2020 / 2021 contract for water hygiene monitoring at Higher Walton Pavilion,27/11/2020,0000459927,46.25,Revenue,KNOWSLEY BLD & ENVIRONMENTAL SERVICES LT,,
South Ribble Borough Council,Surplus or Deficit on Trading,,Property Services,Reactive Repair & Maintenance,2020,Premises Repair & Mtne,,2020 / 2021 contract for water hygiene monitoring at Holme Pavilion,27/11/2020,0000459927,46.25,Revenue,KNOWSLEY BLD & ENVIRONMENTAL SERVICES LT,,
South Ribble Borough Council,Surplus or Deficit on Trading,,Property Services,Reactive Repair & Maintenance,2020,Premises Repair & Mtne,,2020 / 2021 contract for water hygiene monitoring at Hutton Pavilion,27/11/2020,0000459927,46.25,Revenue,KNOWSLEY BLD & ENVIRONMENTAL SERVICES LT,,
South Ribble Borough Council,Surplus or Deficit on Trading,,Property Services,Reactive Repair & Maintenance,2020,Premises Repair & Mtne,,2020 / 2021 contract for water hygiene monitoring at Kingsfold pavilion,27/11/2020,0000459927,54.00,Revenue,KNOWSLEY BLD & ENVIRONMENTAL SERVICES LT,,
South Ribble Borough Council,Surplus or Deficit on Trading,,Property Services,Reactive Repair & Maintenance,2020,Premises Repair & Mtne,,2020 / 2021 contract for water hygiene monitoring at sports pavilions Worden Park (formerly long pavilion),27/11/2020,0000459927,46.25,Revenue,KNOWSLEY BLD & ENVIRONMENTAL SERVICES LT,,
South Ribble Borough Council,Surplus or Deficit on Trading,,Property Services,Reactive Repair & Maintenance,2020,Premises Repair & Mtne,,2019 / 2020 contract for water hygiene monitoring at Moss Side Pavilion,27/11/2020,0000459927,54.00,Revenue,KNOWSLEY BLD & ENVIRONMENTAL SERVICES LT,,
South Ribble Borough Council,Surplus or Deficit on Trading,,Property Services,Reactive Repair & Maintenance,2020,Premises Repair & Mtne,,2020 / 2021 contract for water hygiene monitoring at Much Hoole Pavilion,27/11/2020,0000459927,46.25,Revenue,KNOWSLEY BLD & ENVIRONMENTAL SERVICES LT,,
South Ribble Borough Council,Surplus or Deficit on Trading,,Property Services,Reactive Repair & Maintenance,2020,Premises Repair & Mtne,,2020 / 2021 contract for water hygiene monitoring at Penwortham Holme,27/11/2020,0000459927,46.25,Revenue,KNOWSLEY BLD & ENVIRONMENTAL SERVICES LT,,
South Ribble Borough Council,Surplus or Deficit on Trading,,Property Services,Reactive Repair & Maintenance,2020,Premises Repair & Mtne,,2020 / 2021 contract for water hygiene monitoring at St Cuthbert`s Pavilion,27/11/2020,0000459927,46.25,Revenue,KNOWSLEY BLD & ENVIRONMENTAL SERVICES LT,,
South Ribble Borough Council,Surplus or Deficit on Trading,,Property Services,Reactive Repair & Maintenance,2020,Premises Repair & Mtne,,2020 / 2021 contract for water hygiene monitoring at Withy Grove Pavilion,27/11/2020,0000459927,54.00,Revenue,KNOWSLEY BLD & ENVIRONMENTAL SERVICES LT,,
South Ribble Borough Council,Surplus or Deficit on Trading,,Property Services,Reactive Repair & Maintenance,2020,Premises Repair & Mtne,,2020 / 2021 contract for water hygiene monitoring at Holland House Farm Pavilion,27/11/2020,0000459927,46.25,Revenue,KNOWSLEY BLD & ENVIRONMENTAL SERVICES LT,,
South Ribble Borough Council,Surplus or Deficit on Trading,,Property Services,Reactive Repair & Maintenance,2020,Premises Repair & Mtne,,"2020 / 2021 contract for water hygiene monitoring at The Derby Wing, Worden Park",27/11/2020,0000459927,43.75,Revenue,KNOWSLEY BLD & ENVIRONMENTAL SERVICES LT,,
South Ribble Borough Council,Surplus or Deficit on Trading,,Property Services,Reactive Repair & Maintenance,2020,Premises Repair & Mtne,,2020 / 2021 contract for water hygiene monitoring at Carr Street Community Centre,27/11/2020,0000459927,43.75,Revenue,KNOWSLEY BLD & ENVIRONMENTAL SERVICES LT,,
South Ribble Borough Council,Surplus or Deficit on Trading,,Property Services,Reactive Repair & Maintenance,2020,Premises Repair & Mtne,,2020 / 2021 contract for water hygiene monitoring at Higher Walton Community Centre,27/11/2020,0000459927,43.75,Revenue,KNOWSLEY BLD & ENVIRONMENTAL SERVICES LT,,
South Ribble Borough Council,Surplus or Deficit on Trading,,Property Services,Reactive Repair & Maintenance,2020,Premises Repair & Mtne,,2020 / 2021 contract for water hygiene monitoring at Moss Side Community Centre,27/11/2020,0000459927,43.75,Revenue,KNOWSLEY BLD & ENVIRONMENTAL SERVICES LT,,
South Ribble Borough Council,Surplus or Deficit on Trading,,Property Services,Reactive Repair & Maintenance,2020,Premises Repair & Mtne,,2020 / 2021 contract for water hygiene monitoring at Worden Arts & Craft Centre,27/11/2020,0000459927,59.25,Revenue,KNOWSLEY BLD & ENVIRONMENTAL SERVICES LT,,
South Ribble Borough Council,Economic Development,,Property Services,Reactive Repair & Maintenance,2020,Premises Repair & Mtne,,2020 /2021 contract for water hygiene monitoring at Leyland Market,27/11/2020,0000459927,43.75,Revenue,KNOWSLEY BLD & ENVIRONMENTAL SERVICES LT,,
South Ribble Borough Council,Surplus or Deficit on Trading,,Property Services,Reactive Repair & Maintenance,2020,Premises Repair & Mtne,,2020 / 2021  contract for water hygiene monitoring at Hurst Grange Park,27/11/2020,0000459927,43.75,Revenue,KNOWSLEY BLD & ENVIRONMENTAL SERVICES LT,,
South Ribble Borough Council,Central Support Services,,Property Services,Reactive Repair & Maintenance,2020,Premises Repair & Mtne,,"2020 / 2021 contract for water hygiene monitoring at the Civic Centre, Leyland",27/11/2020,0000459927,334.25,Revenue,KNOWSLEY BLD & ENVIRONMENTAL SERVICES LT,,
South Ribble Borough Council,Central Support Services,,Property Services,Reactive Repair & Maintenance,2020,Premises Repair & Mtne,,2020 / 2021 contract for water hygiene monitoring at Moss Side Depot,27/11/2020,0000459927,112.75,Revenue,KNOWSLEY BLD & ENVIRONMENTAL SERVICES LT,,
South Ribble Borough Council,Surplus or Deficit on Trading,,Property Services,Reactive Repair & Maintenance,2020,Premises Repair & Mtne,,2020 / 2021 contract for water hygiene monitoring at Longton Pavilion,27/11/2020,0000459927,46.25,Revenue,KNOWSLEY BLD & ENVIRONMENTAL SERVICES LT,,
South Ribble Borough Council,Central Support Services,,Property Services,Reactive Repair & Maintenance,2020,Premises Repair & Mtne,,Additional 6 monthly sampling at Moss Side Depot,27/11/2020,0000459927,30.00,Revenue,KNOWSLEY BLD & ENVIRONMENTAL SERVICES LT,,
South Ribble Borough Council,Capital,,Area 3 - Parks/Leyland East West,Cap Contract Payment,C230,Capital Other Land & Bldgs,,"Design and build new toddler and junior play area at Worden Park playground, Leyland",27/11/2020,0000460174,"44,045.59",Revenue,KOMPAN LTD,,
South Ribble Borough Council,Capital,,Area 3 - Parks/Leyland East West,Cap Contract Payment,C230,Capital Other Land & Bldgs,,credit rec`d to cancel out 1st invoice in full took grn,27/11/2020,0000460371,"39,045.59",Revenue,KOMPAN LTD,,
South Ribble Borough Council,Open Spaces,,Area 3 - Parks/Leyland East West,GM Refurbishment,4657,Expenses,,GRANT,20/11/2020,0000460122,"3,156.00",Revenue,Lancashire environmental fund,,
South Ribble Borough Council,Central Support Services,,Neighbourhood Admin & Support,Materials General,4040,Furniture- Equip & Materials,,3000 litres bulk Ad blue @ 0.22 ppl,06/11/2020,0000458470,660.00,Revenue,LANCASHIRE OILS LTD,,
South Ribble Borough Council,Central Support Services,,Area 2 - Waste Transport/Eastern & Central Teams,Materials General,4040,Furniture- Equip & Materials,,EP2 Grease Cartridge 1 x 36 @ 1.45ppc,06/11/2020,0000459789,52.20,Revenue,LANCASHIRE OILS LTD,,
South Ribble Borough Council,Central Support Services,,Area 2 - Waste Transport/Eastern & Central Teams,Materials General,4040,Furniture- Equip & Materials,,Red Long Life Antifreeze- 205ltrs @ 1.49ppl,06/11/2020,0000459789,305.45,Revenue,LANCASHIRE OILS LTD,,
South Ribble Borough Council,Central Support Services,,Area 2 - Waste Transport/Eastern & Central Teams,Materials General,4040,Furniture- Equip & Materials,,3000 litres Bulk Ad blue @ 0.22 ppl,18/11/2020,0000459886,880.00,Revenue,LANCASHIRE OILS LTD,,
South Ribble Borough Council,Waste Collection,,Area 2 - Waste Transport/Eastern & Central Teams,Clinical Waste Disposal,5112,Waste Disposal,,July 2020 - Incineration of Clinical Waste,06/11/2020,0000459519,545.86,Revenue,LANCASHIRE TEACHING FT,,
South Ribble Borough Council,Waste Collection,,Area 2 - Waste Transport/Eastern & Central Teams,Clinical Waste Disposal,5112,Waste Disposal,,August 2020 - Incineration of Clinical Waste,20/11/2020,0000459985,411.19,Revenue,LANCASHIRE TEACHING FT,,
South Ribble Borough Council,Waste Collection,,Area 2 - Waste Transport/Eastern & Central Teams,Clinical Waste Disposal,5112,Waste Disposal,,June 2020 - Incineration of Clinical Waste,11/11/2020,0000459998,467.12,Revenue,LANCASHIRE TEACHING FT,,
South Ribble Borough Council,Short Term Creditors,,Revenues Plus,Bank ac Unident Income,0008,Balance Sheet,,REFUND,04/11/2020,0000459579,524.70,Revenue,LANCS COUNTY COUNCIL,,
South Ribble Borough Council,Trade Waste,,Area 2 - Waste Transport/Eastern & Central Teams,Landfilll Charges,5412,Waste Disposal,,"Quarter 1 Disposal Fee, Landfill Tax & 5% Admin Fee",13/11/2020,0000459832,"50,515.68",Revenue,LANCS COUNTY COUNCIL,,
South Ribble Borough Council,Parking Services,,Area 1 - Penwortham Western Parishes,Processing Centre Charges,4516,Services,,Back Office Processing July - September 2020,06/11/2020,0000459928,472.65,Revenue,LANCS COUNTY COUNCIL,,
South Ribble Borough Council,Parking Services,,Area 1 - Penwortham Western Parishes,Processing Centre Charges,4516,Services,,TEC Recharges July - September 2020,06/11/2020,0000459928,48.00,Revenue,LANCS COUNTY COUNCIL,,
South Ribble Borough Council,Capital,,Housing,Capital Grant,C570,Deferrd Chgs-Improvemnt Grants,,DFG WORK TO SUPPLY AND INSTALL STAIRLIFT AT ADDRESS REDACTED AS PER QUOTE SUPPLIED OF 2930.00,13/11/2020,0000460154,"2,930.00",Revenue,LANCS COUNTY COUNCIL,,
South Ribble Borough Council,Local Land Charges,,Legal,L C C General,4530,Services,,LAND CHARGES - OCTOBER 2020,20/11/2020,0000460168,836.00,Revenue,LANCS COUNTY COUNCIL,,
South Ribble Borough Council,Capital,,Housing,Capital Grant,C570,Deferrd Chgs-Improvemnt Grants,,DFG WORK TO SUPPLY AND INSTALL HOISTING EQUIPMENT AT ADDRESS REDACTED AS PER QUOTE OF 1271.00,25/11/2020,0000460372,"1,271.00",Revenue,LANCS COUNTY COUNCIL,,
South Ribble Borough Council,Capital,,Housing,Capital Grant,C570,Deferrd Chgs-Improvemnt Grants,,DFG WORK TO SUPPLY AND INSTALL STAIRLIFT AT ADDRESS REDACTED AS PER QUOTE SUPPLIED OF 3058.00,25/11/2020,0000460373,"2,930.00",Revenue,LANCS COUNTY COUNCIL,,
South Ribble Borough Council,Capital,,Housing,Capital Grant,C570,Deferrd Chgs-Improvemnt Grants,,DFG WORK TO SUPPLY AND INSTALL STAIRLIFT EQUIPMENT AT ADDRESS REDACTED AS PER QUOTE OF 2930.00,25/11/2020,0000460374,"2,930.00",Revenue,LANCS COUNTY COUNCIL,,
South Ribble Borough Council,Central Support Services,,Area 2 - Waste Transport/Eastern & Central Teams,Materials General,4040,Furniture- Equip & Materials,,AIR BAG - YD19ATK - JFC15715,27/11/2020,0000460330,351.02,Revenue,LANCS DAF,,
South Ribble Borough Council,Open Spaces,,Area 3 - Parks/Leyland East West,GM Refurbishment,4657,Expenses,,- Path surfacing improvements and new bench bays at Worden Park Leyland,27/11/2020,0000460286,"23,321.55",Revenue,LANDSCAPE ENGINEERING LIMITED,,
South Ribble Borough Council,Open Spaces,,Area 3 - Parks/Leyland East West,GM Refurbishment,4657,Expenses,,"- Removal of rear steps and replacement of front steps,  mound slide, Worden Playground",27/11/2020,0000460286,"6,550.00",Revenue,LANDSCAPE ENGINEERING LIMITED,,
South Ribble Borough Council,Open Spaces,,Area 3 - Parks/Leyland East West,GM Refurbishment,4657,Expenses,,"- Patch repairing approximately 76m2 of drives , Worden Park",27/11/2020,0000460378,"3,572.00",Revenue,LANDSCAPE ENGINEERING LIMITED,,
South Ribble Borough Council,Open Spaces,,Area 3 - Parks/Leyland East West,Materials General,4040,Furniture- Equip & Materials,,70:30 Cheshire Root Zone (20 tonnes),06/11/2020,0000459325,616.07,Revenue,M C & M A STEWART HAULAGE LTD,,
South Ribble Borough Council,Recreation & Sport,,Healthy Communities,Materials General,4040,Furniture- Equip & Materials,,Various Bike Maintenance Tools and Bike Parts for Pop Up Dr Bike Sessions.,04/11/2020,0000459713,"1,030.16",Revenue,M&J Distributors Ltd,,
South Ribble Borough Council,Capital,,Housing,Capital Grant,C570,Deferrd Chgs-Improvemnt Grants,,DFG WORKS FOR LEVEL ACCESS BATHROOM AT ADDRESS REDACTED. New progress so 50%  via grant is 2881.80,18/11/2020,0000460027,"2,881.80",Revenue,MAHONEY CONTRACTORS LTD,,
South Ribble Borough Council,Capital,,Housing,Capital Grant,C570,Deferrd Chgs-Improvemnt Grants,,DFG WORKS FOR LEVEL ACCESS BATHROOM AT ADDRESS REDACTED . New progress so 50% via the grant is 2831.20,11/11/2020,0000460035,"2,831.20",Revenue,MAHONEY CONTRACTORS LTD,,
South Ribble Borough Council,Capital,,Housing,Capital Grant,C570,Deferrd Chgs-Improvemnt Grants,,DFG WORKS FOR LEVEL ACCESS BATHROOM AT ADDRESS REDACTED. New progress so 50% Paid via grant is 1545.00,11/11/2020,0000460036,"1,545.00",Revenue,MAHONEY CONTRACTORS LTD,,
South Ribble Borough Council,Capital,,Housing,Capital Grant,C570,Deferrd Chgs-Improvemnt Grants,,DFG WORKS FOR LEVEL ACCESS BATHROOM AT ADDRESS REDACTED. New progress so 50% paid via grant is 3807.29,11/11/2020,0000460037,"3,807.29",Revenue,MAHONEY CONTRACTORS LTD,,
South Ribble Borough Council,Capital,,Housing,Capital Grant,C570,Deferrd Chgs-Improvemnt Grants,,DFG WORKS FOR LEVEL ACCESS BATHROOM AT ADDRESS REDACTED. New progress so 50% paid via grant is 2751.69,18/11/2020,0000460241,"2,751.69",Revenue,MAHONEY CONTRACTORS LTD,,
South Ribble Borough Council,Capital,,Housing,Capital Grant,C570,Deferrd Chgs-Improvemnt Grants,,DFG WORKS FOR LEVEL ACCESS BATHROOM AT ADDRESS REDACTED. New progress so 50% paid via grant is 3048.23,18/11/2020,0000460284,"2,707.92",Revenue,MAHONEY CONTRACTORS LTD,,
South Ribble Borough Council,Capital,,Housing,Capital Grant,C570,Deferrd Chgs-Improvemnt Grants,,DFG WORKS FOR LEVEL ACCESS BATHROOM AT ADDRESS REDACTED. New progress so 50% paid via grant is 2893.24,18/11/2020,0000460285,"2,893.24",Revenue,MAHONEY CONTRACTORS LTD,,
South Ribble Borough Council,Parking Services,,Neighbourhood Admin & Support,Materials General,4040,Furniture- Equip & Materials,,FRANKLANDS,20/11/2020,0000460255,40.00,Revenue,Main Street Signs Ltd,,
South Ribble Borough Council,Parking Services,,Neighbourhood Admin & Support,Materials General,4040,Furniture- Equip & Materials,,DRUMACRE LANE WEST,20/11/2020,0000460255,46.00,Revenue,Main Street Signs Ltd,,
South Ribble Borough Council,Parking Services,,Neighbourhood Admin & Support,Materials General,4040,Furniture- Equip & Materials,,PARK ROAD T,20/11/2020,0000460255,41.00,Revenue,Main Street Signs Ltd,,
South Ribble Borough Council,Parking Services,,Neighbourhood Admin & Support,Materials General,4040,Furniture- Equip & Materials,,GREAT HEY,20/11/2020,0000460255,76.00,Revenue,Main Street Signs Ltd,,
South Ribble Borough Council,Parking Services,,Neighbourhood Admin & Support,Materials General,4040,Furniture- Equip & Materials,,STEPHENDALE AVE  T,20/11/2020,0000460255,94.00,Revenue,Main Street Signs Ltd,,
South Ribble Borough Council,Parking Services,,Neighbourhood Admin & Support,Materials General,4040,Furniture- Equip & Materials,,THE CRESCENT,20/11/2020,0000460255,82.00,Revenue,Main Street Signs Ltd,,
South Ribble Borough Council,Parking Services,,Neighbourhood Admin & Support,Materials General,4040,Furniture- Equip & Materials,,COLLINS ROAD NORTH,20/11/2020,0000460255,92.00,Revenue,Main Street Signs Ltd,,
South Ribble Borough Council,Parking Services,,Neighbourhood Admin & Support,Materials General,4040,Furniture- Equip & Materials,,GROVE ROAD,20/11/2020,0000460255,39.00,Revenue,Main Street Signs Ltd,,
South Ribble Borough Council,Parking Services,,Neighbourhood Admin & Support,Materials General,4040,Furniture- Equip & Materials,,MARGARET ROAD,20/11/2020,0000460255,44.00,Revenue,Main Street Signs Ltd,,
South Ribble Borough Council,Parking Services,,Neighbourhood Admin & Support,Materials General,4040,Furniture- Equip & Materials,,COP LANE POPE LANE,20/11/2020,0000460255,47.00,Revenue,Main Street Signs Ltd,,
South Ribble Borough Council,Parking Services,,Neighbourhood Admin & Support,Materials General,4040,Furniture- Equip & Materials,,POPE LANE,20/11/2020,0000460255,38.00,Revenue,Main Street Signs Ltd,,
South Ribble Borough Council,Parking Services,,Neighbourhood Admin & Support,Materials General,4040,Furniture- Equip & Materials,,MOSS ACRE ROAD,20/11/2020,0000460255,84.00,Revenue,Main Street Signs Ltd,,
South Ribble Borough Council,Parking Services,,Neighbourhood Admin & Support,Materials General,4040,Furniture- Equip & Materials,,CHAPEL LANE,20/11/2020,0000460255,10.00,Revenue,Main Street Signs Ltd,,
South Ribble Borough Council,Parking Services,,Neighbourhood Admin & Support,Materials General,4040,Furniture- Equip & Materials,,WOODSIDE AVE,20/11/2020,0000460255,11.00,Revenue,Main Street Signs Ltd,,
South Ribble Borough Council,Parking Services,,Neighbourhood Admin & Support,Materials General,4040,Furniture- Equip & Materials,,STATION ROAD,20/11/2020,0000460255,41.00,Revenue,Main Street Signs Ltd,,
South Ribble Borough Council,Parking Services,,Neighbourhood Admin & Support,Materials General,4040,Furniture- Equip & Materials,,BRANTWOOD DRIVE,20/11/2020,0000460255,44.00,Revenue,Main Street Signs Ltd,,
South Ribble Borough Council,Parking Services,,Neighbourhood Admin & Support,Materials General,4040,Furniture- Equip & Materials,,DELIVERY CHARGE,20/11/2020,0000460255,59.50,Revenue,Main Street Signs Ltd,,
South Ribble Borough Council,Capital,,Housing,Cap Professional Fees,C210,Capital Other Land & Bldgs,,Surveyor fees for 12 month maternity cover for DFG cases 20000,18/11/2020,0000460166,"2,300.00",Revenue,Mathew Butterworth Associates Limited,,
South Ribble Borough Council,Capital,,Property Services,Cap Contract Payment,C230,Capital Other Land & Bldgs,,"As per NAME REDACTED UPVC Primer, Liquid Plastics with re-enforced matting to gutters, non-slip Liquid Plastics to walk way",20/11/2020,0000459640,"9,500.00",Revenue,Mick Bamber,,
South Ribble Borough Council,Surplus or Deficit on Trading,,Property Services,Reactive Repair & Maintenance,2020,Premises Repair & Mtne,,Repair of chimney stack to Bothy at Walled Garden as per NAME REDACTED work carried out June 2020,25/11/2020,0000460308,750.00,Revenue,Mick Bamber,,
South Ribble Borough Council,Central Support Services,,Area 1 - Penwortham Western Parishes,Kennelling Fees,4521,Services,,Provision of stray dogs service. July 2020,25/11/2020,0000459929,283.71,Revenue,MORNINGSIDE KENNELS,,
South Ribble Borough Council,Central Support Services,,Area 1 - Penwortham Western Parishes,Kennelling Fees,4521,Services,,Provision of stray dogs service. June 2020,25/11/2020,0000459930,329.85,Revenue,MORNINGSIDE KENNELS,,
South Ribble Borough Council,Central Support Services,,Legal,Legal,4821,Miscellaneous Expenses,,"PROFESSIONAL SERVICES LAND REAR OF OAKDENE, CHAIN HOUSE LANE WAINHOMES - V SOUTH RIBBLE BC",04/11/2020,0000459673,675.00,Revenue,Mr Alan Evans,,
South Ribble Borough Council,Central Support Services,,Area 2 - Waste Transport/Eastern & Central Teams,External Contractors Charges,4570,Services,,Service contract of workshop equipment,06/11/2020,0000458625,"1,500.00",Revenue,MRB Workshop Services Ltd,,
South Ribble Borough Council,Central Support Services,,Information Services,Computer Equipment,4241,Communications & Comuting,,"5 x HP 255 G7 Notebook Silver 39.6 cm (15.6``) @ 528.41 each, plus delivery 10.00, as per quote 190736",13/11/2020,0000460109,"2,652.05",Revenue,MYPREMIER LTD,,
South Ribble Borough Council,Central Support Services,,Regeneration,Computer Equipment,4241,Communications & Comuting,,3 x Samsung Galaxy Tab active 2 SM-T395NZKABTU as per quotation 190859 (365.00 per tablet) for SRBC regeneration dept,27/11/2020,0000460381,"1,105.00",Revenue,MYPREMIER LTD,,
South Ribble Borough Council,Central Support Services,,Area 2 - Waste Transport/Eastern & Central Teams,External Contractors Charges,4570,Services,,Service Wash- VN63UAH 05.10.2020 - OW1229,13/11/2020,0000459982,65.00,Revenue,NAYLORS TRANSPORT (LEYLAND) ltd,,
South Ribble Borough Council,Central Support Services,,Area 2 - Waste Transport/Eastern & Central Teams,External Contractors Charges,4570,Services,,Service Wash - VO65KRD 12.10.2020 - JFC15635,13/11/2020,0000459982,65.00,Revenue,NAYLORS TRANSPORT (LEYLAND) ltd,,
South Ribble Borough Council,Central Support Services,,Area 2 - Waste Transport/Eastern & Central Teams,External Contractors Charges,4570,Services,,Service Wash - VX18KLC 13.10.2020- JFC15636,13/11/2020,0000459982,65.00,Revenue,NAYLORS TRANSPORT (LEYLAND) ltd,,
South Ribble Borough Council,Central Support Services,,Area 2 - Waste Transport/Eastern & Central Teams,External Contractors Charges,4570,Services,,Service Wash - VK20NVV 14.10.2020 - JFC15637,13/11/2020,0000459982,65.00,Revenue,NAYLORS TRANSPORT (LEYLAND) ltd,,
South Ribble Borough Council,Central Support Services,,Area 2 - Waste Transport/Eastern & Central Teams,External Contractors Charges,4570,Services,,Service Wash - VO65KPZ- 16.10.2020- JFC15531,13/11/2020,0000459982,75.00,Revenue,NAYLORS TRANSPORT (LEYLAND) ltd,,
South Ribble Borough Council,Central Support Services,,Area 2 - Waste Transport/Eastern & Central Teams,External Contractors Charges,4570,Services,,Service Wash- VO65KPX 21.10.2020- JFC15547,13/11/2020,0000459982,65.00,Revenue,NAYLORS TRANSPORT (LEYLAND) ltd,,
South Ribble Borough Council,Central Support Services,,Area 2 - Waste Transport/Eastern & Central Teams,External Contractors Charges,4570,Services,,Service Wash PJ62 UCG 23.10.2020 - JFC15585,13/11/2020,0000459982,75.00,Revenue,NAYLORS TRANSPORT (LEYLAND) ltd,,
South Ribble Borough Council,Central Support Services,,Area 2 - Waste Transport/Eastern & Central Teams,External Contractors Charges,4570,Services,,Service Wash- PO20ZRV 30.10.2020 - JFC15638,13/11/2020,0000459982,65.00,Revenue,NAYLORS TRANSPORT (LEYLAND) ltd,,
South Ribble Borough Council,Regulatory Services,,Environmental Health,Burial Expenses,5310,Contractors Chges,,Funeral for NAME REDACTED - per NAME REDACTED.,20/11/2020,0000460240,"1,295.00",Revenue,NEAL BUCKLEY,,
South Ribble Borough Council,Central Support Services,,Neighbourhood Admin & Support,Materials General,4040,Furniture- Equip & Materials,,CHANNEL BRUSH - 2.8 mm POLY & 3.3mm WIRE 5 row 700/1000mm - MIDI SWEEPER 78399/2 - 1002004,25/11/2020,0000460283,568.22,Revenue,NORTHERN MUNICIPAL SPARES LTD,,
South Ribble Borough Council,Central Support Services,,Neighbourhood Admin & Support,Materials General,4040,Furniture- Equip & Materials,,FREIGHT,25/11/2020,0000460283,39.50,Revenue,NORTHERN MUNICIPAL SPARES LTD,,
South Ribble Borough Council,Parking Services,,Area 1 - Penwortham Western Parishes,Parking Attendants,4514,Services,,Deployment of officers October 2020,13/11/2020,0000459989,"1,476.56",Revenue,NSL LTD,,
South Ribble Borough Council,Parking Services,,Area 1 - Penwortham Western Parishes,Cash Collection Charges Car Parks,4855,Miscellaneous Expenses,,Cash Collection and Ringo Charges- October 2020,13/11/2020,0000459989,584.96,Revenue,NSL LTD,,
South Ribble Borough Council,Parking Services,,Area 1 - Penwortham Western Parishes,Cash Collection Charges Car Parks,4855,Miscellaneous Expenses,,Ringo Convenience Charges- October 2020,13/11/2020,0000459989,227.12,Revenue,NSL LTD,,
South Ribble Borough Council,Open Spaces,,Area 1 - Penwortham Western Parishes,Security Service,4526,Services,,PRICE PER CONTRACTED ITEMISED COLLECTION,13/11/2020,0000459989,41.04,Revenue,NSL LTD,,
South Ribble Borough Council,Central Support Services,,Information Services,Network and Security,4247,Communications & Comuting,,"VMware renewal for period 09/11/20 - 08/11/21, as per quote",25/11/2020,0000460349,"7,395.00",Revenue,NVIRON LTD,,
South Ribble Borough Council,Capital,,Area 3 - Parks/Leyland East West,Cap Contract Payment,C230,Capital Other Land & Bldgs,,"Installation of macadam path at Balcarres Green, Leyland",13/11/2020,0000460054,"17,366.76",Revenue,O`Callaghan Ltd,,
South Ribble Borough Council,Central Support Services,,Property Services,Reactive Repair & Maintenance,2020,Premises Repair & Mtne,,Annual Inspection and test of the lightning conductors at the Civic Centre - contact NAME REDACTED for access.,11/11/2020,0000459931,"1,888.46",Revenue,OMEGA RED GROUP LTD,,
South Ribble Borough Council,Central Support Services,,Property Services,Reactive Repair & Maintenance,2020,Premises Repair & Mtne,,Annual Inspection of the Height Safety System (Fall Arrest System) at the Civic Centre contact NAME REDACTED for access,11/11/2020,0000459932,295.00,Revenue,OMEGA RED GROUP LTD,,
South Ribble Borough Council,Economic Development,,Property Services,Professional Fees,4510,Services,,Consultancy fees on the revenue implications of the Town Deal�s planned Skills and Training Hub ,20/11/2020,0000460237,"5,000.00",Revenue,Oxford Innovation Ltd,,
South Ribble Borough Council,Parking Services,,Area 1 - Penwortham Western Parishes,Materials General,4040,Furniture- Equip & Materials,,"60,000 Stelio Adhesive Pay and Display tickets @6.95 per 1000",04/11/2020,0000459777,417.00,Revenue,PAPERWORK UK LTD,,
South Ribble Borough Council,Parking Services,,Area 1 - Penwortham Western Parishes,Maintenance & Repair,4013,Furniture- Equip & Materials,,Repairs to machine 2 - Ecroyd Street- Estimate 216.50,25/11/2020,0000460055,321.63,Revenue,PARKEON LTD,,
South Ribble Borough Council,Central Support Services,,Neighbourhood Admin & Support,Clothing and Uniforms,4410,"Clothes,uniform & laundry",,DISPOSABLE GLOVES NITRILE (BOX- 100) LARGE - DG150-L,25/11/2020,0000459836,277.50,Revenue,Pattersons (Bristol) Ltd,,
South Ribble Borough Council,Central Support Services,,Healthy Communities,Consumable Clng Materials,2711,Cleaning & Domestic Supplies,,BA030-75 - JANGRO GLASS & MIRROR CLEANER 750ML,25/11/2020,0000460387,15.72,Revenue,Pattersons (Bristol) Ltd,,
South Ribble Borough Council,Central Support Services,,Healthy Communities,Consumable Clng Materials,2711,Cleaning & Domestic Supplies,,BC015-75 - JANGRO THICKENED BLEACH 750ML,25/11/2020,0000460387,18.00,Revenue,Pattersons (Bristol) Ltd,,
South Ribble Borough Council,Central Support Services,,Healthy Communities,Consumable Clng Materials,2711,Cleaning & Domestic Supplies,,AA201 - JANGRO MICRO MINI TOILET ROLL 100M X 90MM (24),25/11/2020,0000460387,52.95,Revenue,Pattersons (Bristol) Ltd,,
South Ribble Borough Council,Central Support Services,,Healthy Communities,Consumable Clng Materials,2711,Cleaning & Domestic Supplies,,CG106-Y - EXEL MICROFIBRE SUPER CLOTH,25/11/2020,0000460387,7.80,Revenue,Pattersons (Bristol) Ltd,,
South Ribble Borough Council,Central Support Services,,Healthy Communities,Consumable Clng Materials,2711,Cleaning & Domestic Supplies,,AE234 - TORK S-FOLD HAND TOWEL 1PLY BLUE (4000SHT),25/11/2020,0000460387,66.25,Revenue,Pattersons (Bristol) Ltd,,
South Ribble Borough Council,Central Support Services,,Healthy Communities,Consumable Clng Materials,2711,Cleaning & Domestic Supplies,,CM180 - JANGRO REFUSE SACKS 18X29X39 180G HEAVY DUTY BLACK (200),25/11/2020,0000460387,58.75,Revenue,Pattersons (Bristol) Ltd,,
South Ribble Borough Council,Central Support Services,,Healthy Communities,Consumable Clng Materials,2711,Cleaning & Domestic Supplies,,CG106-G - EXEL MICROFIBRE SUPER CLOTH 40X 40CM GREEN     (10),25/11/2020,0000460387,7.80,Revenue,Pattersons (Bristol) Ltd,,
South Ribble Borough Council,Central Support Services,,Healthy Communities,Consumable Clng Materials,2711,Cleaning & Domestic Supplies,,BC045-1 - JANGRO TOILET & WASHROOM CLEANER DESCALER  1 LTR,25/11/2020,0000460387,22.56,Revenue,Pattersons (Bristol) Ltd,,
South Ribble Borough Council,Central Support Services,,Healthy Communities,Consumable Clng Materials,2711,Cleaning & Domestic Supplies,,CG106-P - EXEL MICROFIBRE SUPER CLOTH 40X 40CM PINK (10),25/11/2020,0000460387,7.80,Revenue,Pattersons (Bristol) Ltd,,
South Ribble Borough Council,Central Support Services,,Healthy Communities,Consumable Clng Materials,2711,Cleaning & Domestic Supplies,,BB034-5 - JANGRO CONCENTRATED GREEN DETERGENT 20% 5LTR,25/11/2020,0000460387,6.60,Revenue,Pattersons (Bristol) Ltd,,
South Ribble Borough Council,Central Support Services,,Healthy Communities,Consumable Clng Materials,2711,Cleaning & Domestic Supplies,,JH-00059 - Jangro Alcohol Gel Hand Rub 500ml (Case of 6),25/11/2020,0000460387,15.93,Revenue,Pattersons (Bristol) Ltd,,
South Ribble Borough Council,Central Support Services,,Property Services,Reactive Repair & Maintenance,2020,Premises Repair & Mtne,,"Works as per NAME REDACTED Decoration External cladding to civic centre a discussed with NAME REDACTED, prepare all ",20/11/2020,0000460176,"4,180.00",Revenue,PDP PROPERTY SERVICES LTD,,
South Ribble Borough Council,Community Development,,Regeneration,Miscellaneous Expenses,4851,Miscellaneous Expenses,,Parts and labour to refurbish the 14ft by 35ft polytunnel at the Giant Veggie Patch in Leyland.,20/11/2020,0000460281,"1,963.00",Revenue,Pennine Lancashire Community Farm CIO,,
South Ribble Borough Council,Recycling,,Area 2 - Waste Transport/Eastern & Central Teams,Contract Printing,4127,Printing- Stat & Office Expens,,Supply & Deliver of Garden Waste Permits. August - December 2020,06/11/2020,0000459509,678.30,Revenue,Permiserv Ltd,,
South Ribble Borough Council,Recycling,,Area 2 - Waste Transport/Eastern & Central Teams,Contract Printing,4127,Printing- Stat & Office Expens,,Supply & Deliver of Garden Waste Permits. August - December 2020,06/11/2020,0000459653,302.10,Revenue,Permiserv Ltd,,
South Ribble Borough Council,Capital,,Property Services,Cap Contract Payment,C230,Capital Other Land & Bldgs,,"Land South Off Moss Lane, Off Croston Road, Farington Moss, Leyland, PR26 6PU - Valuation as per NAME REDACTED",04/11/2020,0000459784,385.00,Revenue,PETER E GILKES & COMPANY,,
South Ribble Borough Council,Central Support Services,,HR & Communications,Group life Insurance,1819,Employee Related Insurance,,apr 20 to mar 21,25/11/2020,0000460224,283.82,Revenue,PHOENIX LIFE LTD,,
South Ribble Borough Council,Central Support Services,,Property Services,Rental,4012,Furniture- Equip & Materials,,2020 / 2021 contract for the provision of sanitary services at the Civic Centre,18/11/2020,0000460067,982.31,Revenue,PHS GROUP PLC,,
South Ribble Borough Council,Central Support Services,,Property Services,Rental,4012,Furniture- Equip & Materials,,"2020 / 2021 contract for the provision of sanitary services at Moss Side Depot, Bison Place, Leyland",18/11/2020,0000460070,410.88,Revenue,PHS GROUP PLC,,
South Ribble Borough Council,Central Support Services,,Area 2 - Waste Transport/Eastern & Central Teams,Materials General,4040,Furniture- Equip & Materials,,1000 litre Type 32 hydraulic oil at 74ppl,13/11/2020,0000459892,525.40,Revenue,PILKINGTON OILS,,
South Ribble Borough Council,Central Support Services,,Area 2 - Waste Transport/Eastern & Central Teams,Materials General,4040,Furniture- Equip & Materials,,1000 litres Type 46 hydraulic oil @ 74ppl,13/11/2020,0000459935,535.76,Revenue,PILKINGTON OILS,,
South Ribble Borough Council,Central Support Services,,Planning,Agency Staff,1121,Salaries,,Providing Temporary Planning Enforcement Services,11/11/2020,0000459889,750.50,Revenue,Planning Control & PACE Solutions,,
South Ribble Borough Council,Central Support Services,,Information Services,Paper Bulk,4133,Printing- Stat & Office Expens,,"40,000 sheets Evolution Everyday A4 80gm 15000 sheets Evolution Business a4 90gm",25/11/2020,0000460385,335.50,Revenue,PREMIER PAPER GROUP LTD,,
South Ribble Borough Council,Central Support Services,,Area 2 - Waste Transport/Eastern & Central Teams,External Contractors Charges,4570,Services,,TR225- repair and replacement tyres,06/11/2020,0000459634,519.00,Revenue,PRESTON TYRE SPECIALISTS,,
South Ribble Borough Council,Central Support Services,,Area 2 - Waste Transport/Eastern & Central Teams,Materials General,4040,Furniture- Equip & Materials,,2 x tyres 15/70 18 PO61MJJ JFC15628,27/11/2020,0000460279,437.00,Revenue,PRESTON TYRE SPECIALISTS,,
South Ribble Borough Council,Elections,,Democratic Services,Postage General,4291,Communications & Comuting,,ANNUAL CANVASS STAGE 4 MAILING (JOB REF 7289),04/11/2020,0000459671,"1,574.30",Revenue,PRINT IMAGE FACILITIES LLP,,
South Ribble Borough Council,Elections,,Democratic Services,Electoral Administration Act,4970,Miscellaneous Expenses,,"12,000 ITR OUTGOING ENVELOPES AS PER ORDER ACKNOWLEDGEMENT - JOB REFERENCE 7301",20/11/2020,0000460274,520.60,Revenue,PRINT IMAGE NETWORK LTD,,
South Ribble Borough Council,Recreation & Sport,,Property Services,Planned Repair & Maintenance,2021,Premises Repair & Mtne,,Please attend Penwortham Holme and do boarding and make secure the building due to vandalism as per NAME REDACTED,11/11/2020,0000459937,230.00,Revenue,PSR & Sons Joiners & Building Contractors,,
South Ribble Borough Council,Recreation & Sport,,Property Services,Planned Repair & Maintenance,2021,Premises Repair & Mtne,,LABOUR,11/11/2020,0000459937,50.00,Revenue,PSR & Sons Joiners & Building Contractors,,
South Ribble Borough Council,Corporate Management,,Property Services,Improvements to Premises,2023,Premises Repair & Mtne,,Please  undertake remodelling works to the Civic Centre Covid testing unit as detailed in your quotation  ref Q3490,11/11/2020,0000459938,220.00,Revenue,PSR & Sons Joiners & Building Contractors,,
South Ribble Borough Council,Corporate Management,,Property Services,Improvements to Premises,2023,Premises Repair & Mtne,,LABOUR,11/11/2020,0000459938,210.00,Revenue,PSR & Sons Joiners & Building Contractors,,
South Ribble Borough Council,Capital,,Regeneration,Cap Contract Payment,C230,Capital Other Land & Bldgs,,Please undertake the ``Worden hall refurbishment project part to RIBA stage 3``,06/11/2020,0000459858,"14,147.50",Revenue,Purcell Architecture Limited,,
South Ribble Borough Council,Central Support Services,,Information Services,Franked Post,4292,Communications & Comuting,,2 x Black ink  cartridges & RM underpayments 19/10 to 18/11/20,27/11/2020,0000460525,277.87,Revenue,Purchase Power,,
South Ribble Borough Council,Central Support Services,,Information Services,Franked Post,4292,Communications & Comuting,,non vat,27/11/2020,0000460525,11.33,Revenue,Purchase Power,,
South Ribble Borough Council,Central Support Services,,Area 2 - Waste Transport/Eastern & Central Teams,External Contractors Charges,4570,Services,,Contract for the rental of 59 TCSV Terminals (Vehicle Tracking) 1.10.20 - 31.12.20,13/11/2020,0000459456,"2,070.00",Revenue,Quartix,,
South Ribble Borough Council,Capital,,Regeneration,Cap Contract Payment,C230,Capital Other Land & Bldgs,,"EXTENDED PHASE 1 HABITAT SURVEY, DAYTIME BAT SURVEY & BAT EMERGENCE SURVEYS AT WORDEN HALL",11/11/2020,0000459979,"2,295.00",Revenue,Rachel Hacking Ecology,,
South Ribble Borough Council,Open Spaces,,Area 3 - Parks/Leyland East West,Hiring Expenses,3212,Contract Hire & Operating Leas,,1 x hire of 2 ton dumper for  4 weeks from. 01.09.2020,06/11/2020,0000459467,260.00,Revenue,Readyplant Limited,,
South Ribble Borough Council,Recreation & Sport,,Healthy Communities,Publicity & Promotion,4842,Miscellaneous Expenses,,Works to add custom shelving to Sports Dev Van in preparation for Dr Bike Sessions.,20/11/2020,0000460120,"1,750.00",Revenue,Ribble Motorhomes,,
South Ribble Borough Council,Central Support Services,,Area 2 - Waste Transport/Eastern & Central Teams,Materials General,4040,Furniture- Equip & Materials,,"2x BATTTERIES, VO65 KPZ, JFC15665 (NAME REDACTED)",20/11/2020,0000460227,270.00,Revenue,RIBBLESDALE AUTO ELECTRICS 1992 LTD,,
South Ribble Borough Council,Central Support Services,,Information Services,Business Reply Services,4295,Communications & Comuting,,serv 28th march,04/11/2020,0000459859,"2,888.98",Revenue,ROYAL MAIL GROUP PLC,,
South Ribble Borough Council,Central Support Services,,Information Services,Business Reply Services,4295,Communications & Comuting,,licence fee,25/11/2020,0000460332,333.33,Revenue,ROYAL MAIL GROUP PLC,,
South Ribble Borough Council,Central Support Services,,Area 2 - Waste Transport/Eastern & Central Teams,Materials General,4040,Furniture- Equip & Materials,,PACKER PLATE PINS + BEARINGS + EJECTOR PLATE PINS - PJ62UCG - JFC15493,06/11/2020,0000459465,665.99,Revenue,RTS Muni,,
South Ribble Borough Council,Central Support Services,,Area 2 - Waste Transport/Eastern & Central Teams,Materials General,4040,Furniture- Equip & Materials,,1000 litres Energize Premium Hi-Foaming TFR with wax (Super Conc),06/11/2020,0000459883,911.15,Revenue,Saanro International Ltd,,
South Ribble Borough Council,Payments of Precepts to Parish,,Revenues Plus,Parish Precepts,4870,Parish Precepts,,parish precept,25/11/2020,0000460384,"8,000.00",Revenue,SAMLESBURY & CUERDALE PARISH COUNCIL,,
South Ribble Borough Council,Recreation & Sport,,Development Enterprise & Comm Mgnt,Serco Leisure Operating Ltd-R&M-Core Fee,4536,Services,,R & M for 2020/2021,11/11/2020,0000459947,"14,801.50",Revenue,SERCO LEISURE (OP) LTD,,
South Ribble Borough Council,Central Support Services,,Information Services,Other Fees,4520,Services,,Shredding of Confidential Waste 2020/21,11/11/2020,0000459964,481.78,Revenue,SHRED-IT LTD,,
South Ribble Borough Council,Central Support Services,,Information Services,Other Fees,4520,Services,,Shredding of Confidential Waste 2020/21,25/11/2020,0000460327,481.78,Revenue,SHRED-IT LTD,,
South Ribble Borough Council,Corporate Management,,Homelessness,Temporary Accommodation,5311,Contractors Chges,,SRBC placements x4 20-26/9/20  1400 27/9 - 3/10/20 1400 4-10/20 1400,06/11/2020,0000459626,"1,400.00",Revenue,SMITHY LODGE GUEST HOUSE,,
South Ribble Borough Council,Corporate Management,,Homelessness,Temporary Accommodation,5311,Contractors Chges,,SRBC placements x4 20-26/9/20  1400 27/9 - 3/10/20 1400 4-10/20 1400,06/11/2020,0000459627,"1,400.00",Revenue,SMITHY LODGE GUEST HOUSE,,
South Ribble Borough Council,Corporate Management,,Homelessness,Temporary Accommodation,5311,Contractors Chges,,SRBC placements x4 20-26/9/20  1400 27/9 - 3/10/20 1400 4-10/20 1400,06/11/2020,0000459628,"1,400.00",Revenue,SMITHY LODGE GUEST HOUSE,,
South Ribble Borough Council,Corporate Management,,Homelessness,Temporary Accommodation,5311,Contractors Chges,,SRBC placements at Smithy lodge x4 11-17 October 2020 18-24 October 2020,11/11/2020,0000459840,"1,400.00",Revenue,SMITHY LODGE GUEST HOUSE,,
South Ribble Borough Council,Central Support Services,,Information Services,Applications Systems,4248,Communications & Comuting,,Better Connected + Membership for period 01/01/21 - 31/12/21,11/11/2020,0000460008,995.00,Revenue,SOCITM LIMITED,,
South Ribble Borough Council,Central Support Services,,Information Services,Network and Security,4247,Communications & Comuting,,Cerberus FTP Server Enterprise Edition Single Licence - 1 Years Support & Updates Renewal by Cerberus,13/11/2020,0000460110,654.50,Revenue,SOFTCAT LIMITED,,
South Ribble Borough Council,Recreation & Sport,,Development Enterprise & Comm Mgnt,Leisure Services Fee - Core Fee,4532,Services,,Leisure Services Fee 2020/2021,20/11/2020,0000459944,"24,780.09",Revenue,SOUTH RIBBLE COMMUNITY LEISURE LTD,,
South Ribble Borough Council,Short Term Creditors,,Shared Financial Services,Amount Paid,0030,Balance Sheet,,monthly deds,11/11/2020,0000459872,"1,232.92",Revenue,SOUTH RIBBLE LABOUR PARTY LOCAL GOVERNM,,
South Ribble Borough Council,Central Support Services,,Area 1 - Penwortham Western Parishes,Materials General,4040,Furniture- Equip & Materials,,HAND WIPES (200 TUB) - 30008,04/11/2020,0000459758,526.68,Revenue,SPALDINGS,,
South Ribble Borough Council,Central Support Services,,Area 2 - Waste Transport/Eastern & Central Teams,Materials General,4040,Furniture- Equip & Materials,,4 x bearing seal 4 x cylinder bearing 2 x rollers 2 x scraper wires 5 x bottom blades TGM01A3 FC15599,13/11/2020,0000459841,343.66,Revenue,SPALDINGS,,
South Ribble Borough Council,Central Support Services,,Area 2 - Waste Transport/Eastern & Central Teams,Operational Equip & Tools,4010,Furniture- Equip & Materials,,Bulldog Premier Pruning Saw (30693),18/11/2020,0000460177,43.68,Revenue,SPALDINGS,,
South Ribble Borough Council,Central Support Services,,Area 2 - Waste Transport/Eastern & Central Teams,Materials General,4040,Furniture- Equip & Materials,,Handwipes (200 TUB) - wet wipes (30008),18/11/2020,0000460177,263.34,Revenue,SPALDINGS,,
South Ribble Borough Council,Central Support Services,,Area 2 - Waste Transport/Eastern & Central Teams,Materials General,4040,Furniture- Equip & Materials,, 3 x  Pivot Pin -BIN 1133,27/11/2020,0000460483,79.65,Revenue,SPALDINGS,,
South Ribble Borough Council,Central Support Services,,Area 2 - Waste Transport/Eastern & Central Teams,Materials General,4040,Furniture- Equip & Materials,,48 x Cylinder Bearings-1138,27/11/2020,0000460483,316.32,Revenue,SPALDINGS,,
South Ribble Borough Council,Central Support Services,,Area 2 - Waste Transport/Eastern & Central Teams,Materials General,4040,Furniture- Equip & Materials,,8 x Cylinder Bearing Seal Ring- BIN 1118,27/11/2020,0000460483,33.60,Revenue,SPALDINGS,,
South Ribble Borough Council,Central Support Services,,Area 2 - Waste Transport/Eastern & Central Teams,Materials General,4040,Furniture- Equip & Materials,,4 x Rollers- BIN  1268,27/11/2020,0000460483,206.00,Revenue,SPALDINGS,,
South Ribble Borough Council,Central Support Services,,Area 2 - Waste Transport/Eastern & Central Teams,Materials General,4040,Furniture- Equip & Materials,,6 x Roller Bush - BIN 1123,27/11/2020,0000460483,14.40,Revenue,SPALDINGS,,
South Ribble Borough Council,Central Support Services,,Area 2 - Waste Transport/Eastern & Central Teams,Materials General,4040,Furniture- Equip & Materials,,4 x pivot bolts- BIN 1122,27/11/2020,0000460483,41.80,Revenue,SPALDINGS,,
South Ribble Borough Council,Central Support Services,,Area 2 - Waste Transport/Eastern & Central Teams,Materials General,4040,Furniture- Equip & Materials,,4 x clamp bolts- Bin 1124,27/11/2020,0000460483,30.20,Revenue,SPALDINGS,,
South Ribble Borough Council,Central Support Services,,Area 2 - Waste Transport/Eastern & Central Teams,Materials General,4040,Furniture- Equip & Materials,,seal ring,27/11/2020,0000460483,4.80,Revenue,SPALDINGS,,
South Ribble Borough Council,Capital,,Healthy Communities,Cap Contract Payment,C230,Capital Other Land & Bldgs,,Description of work: Facility Planning Model Assessment - as requested by NAME REDACTED Cost: 11656 (plus VAT),04/11/2020,0000459625,"11,656.00",Revenue,SPORT ENGLAND,,
South Ribble Borough Council,Short Term Creditors,,Shared Financial Services,Amount Paid,0030,Balance Sheet,,monthly deds,11/11/2020,0000459874,416.64,Revenue,ST CATHERINES HOSPICE PROMOTIONS LTD,,
South Ribble Borough Council,Service Management & Support,,Area 2 - Waste Transport/Eastern & Central Teams,Diesel Fuel,3132,Direct Transport Costs,,"14000 litres diesel @ 87.31 into the feeder tank at Unit 81 Bison Place, Moss Side - Key for cabinet available from REDACTED",13/11/2020,0000459898,"12,286.26",Revenue,Standard Fuel Oils LtdMain,,
South Ribble Borough Council,Service Management & Support,,Area 2 - Waste Transport/Eastern & Central Teams,Diesel Fuel,3132,Direct Transport Costs,,17000 litres diesel@87.15 into the feeder tank at Unit 81 Bison Place Moss Side - Key for cabinet available from REDACTED,13/11/2020,0000459952,"14,820.00",Revenue,Standard Fuel Oils LtdMain,,
South Ribble Borough Council,Service Management & Support,,Neighbourhood Admin & Support,Diesel Fuel,3132,Direct Transport Costs,,16000 litres diesel @ 85.89ppl into the feeder tank at Unit 81 Bison Place Moss Side- key for cabinet available from REDACTED,25/11/2020,0000460221,"13,883.55",Revenue,Standard Fuel Oils LtdMain,,
South Ribble Borough Council,Central Support Services,,Information Services,Reference Books,4142,Printing- Stat & Office Expens,,31680682,04/11/2020,0000459862,307.35,Revenue,STATIONERY OFFICE LTD,,
South Ribble Borough Council,Economic Development,,Property Services,Professional Fees,4510,Services,,Consultancy fees for South Ribble Borough Councils Town deal,06/11/2020,0000459692,"12,415.50",Revenue,Steer Davies & Gleave Ltd,,
South Ribble Borough Council,Economic Development,,Property Services,Professional Fees,4510,Services,,Consultancy fees for South Ribble Borough Councils Town deal,20/11/2020,0000460006,"12,415.50",Revenue,Steer Davies & Gleave Ltd,,
South Ribble Borough Council,Capital,,Regeneration,Cap Contract Payment,C230,Capital Other Land & Bldgs,,Removal of tree�s within Shruggs wood as instructed by NAME REDACTED to commence on 9th November 2020,18/11/2020,0000460162,"6,150.00",Revenue,Stephen Pye Tree Services,,
South Ribble Borough Council,Capital,,Healthy Communities,Cap Contract Payment,C230,Capital Other Land & Bldgs,,Professional services needed in developing the Playing Pitch Hub facilities at Bamber Bridge. As per NAMES REDACTED,11/11/2020,0000460004,"49,836.40",Revenue,Steve Wells Associates Ltd,,
South Ribble Borough Council,Recreation & Sport,,Property Services,Reactive Repair & Maintenance,2020,Premises Repair & Mtne,,Rental fees for the anti vandal canteen unit located at Penwortham Holme ref 523-037516,18/11/2020,0000460160,259.60,Revenue,Sunbelt Rentals UK Ltd,,
South Ribble Borough Council,Recreation & Sport,,Property Services,Reactive Repair & Maintenance,2020,Premises Repair & Mtne,,Rental fees for the anti vandal canteen unit located at Penwortham Holme ref 523-037516,18/11/2020,0000460179,259.60,Revenue,Sunbelt Rentals UK Ltd,,
South Ribble Borough Council,Central Support Services,,Information Services,Departmental Course Fees,1420,Training Expenses,,Cyber Security Training,11/11/2020,0000459945,"2,700.00",Revenue,TAMESIDE METROPOLITAN BOROUGH COUNCIL,,
South Ribble Borough Council,Democratic Represent and  Mgnt,,Scrutiny,Corp Subs to Professional Bodies,4720,Grants & Subscriptions,,iNETWORK MEMBERSHIP SUBSCRIPTION RENEWAL FOR SRBC - 2020-2021,27/11/2020,0000459946,"2,205.00",Revenue,TAMESIDE METROPOLITAN BOROUGH COUNCIL,,
South Ribble Borough Council,Central Support Services,,Area 2 - Waste Transport/Eastern & Central Teams,Materials General,4040,Furniture- Equip & Materials,,2 x bin clamp rams VU11HSZ JFC15431,06/11/2020,0000459318,538.65,Revenue,Taylor Enginering & Fabrications Ltd,,
South Ribble Borough Council,Central Support Services,,Area 2 - Waste Transport/Eastern & Central Teams,Materials General,4040,Furniture- Equip & Materials,,1 CLAMP SPRING VO65 KRE JFC15580,06/11/2020,0000459782,334.50,Revenue,Taylor Enginering & Fabrications Ltd,,
South Ribble Borough Council,Central Support Services,,Area 2 - Waste Transport/Eastern & Central Teams,Materials General,4040,Furniture- Equip & Materials,,SENSOR TEL2387 - VO65KRF - JFC15463,13/11/2020,0000459960,289.16,Revenue,Taylor Enginering & Fabrications Ltd,,
South Ribble Borough Council,Central Support Services,,Area 2 - Waste Transport/Eastern & Central Teams,Materials General,4040,Furniture- Equip & Materials,,HOPPER PLATE SWITCH - VO65KRF - JFC15441,13/11/2020,0000459960,129.27,Revenue,Taylor Enginering & Fabrications Ltd,,
South Ribble Borough Council,Central Support Services,,Area 2 - Waste Transport/Eastern & Central Teams,Materials General,4040,Furniture- Equip & Materials,,CARRIAGE,13/11/2020,0000459960,8.95,Revenue,Taylor Enginering & Fabrications Ltd,,
South Ribble Borough Council,Central Support Services,,Area 2 - Waste Transport/Eastern & Central Teams,Materials General,4040,Furniture- Equip & Materials,,SENSOR TEL2387 - VO65KRE - JFC15563,13/11/2020,0000459960,289.16,Revenue,Taylor Enginering & Fabrications Ltd,,
South Ribble Borough Council,Central Support Services,,Area 2 - Waste Transport/Eastern & Central Teams,Materials General,4040,Furniture- Equip & Materials,,Start sensor TEL2387 VO65 KRFJFC15522,13/11/2020,0000460057,295.41,Revenue,Taylor Enginering & Fabrications Ltd,,
South Ribble Borough Council,Central Support Services,,Area 2 - Waste Transport/Eastern & Central Teams,Materials General,4040,Furniture- Equip & Materials,,Safety Arm TEM1477 VU58 JXK JFC15609,13/11/2020,0000460057,79.75,Revenue,Taylor Enginering & Fabrications Ltd,,
South Ribble Borough Council,Central Support Services,,Legal,Reference Books,4142,Printing- Stat & Office Expens,,ALDRIDGE Pract R70,20/11/2020,0000460232,576.00,Revenue,THOMSON REUTERS,,
South Ribble Borough Council,Central Support Services,,Property Services,Gas,2304,Energy Costs,,30/9 to 31/10/2020,11/11/2020,0000459976,676.80,Revenue,Total Gas & power Ltd,,
South Ribble Borough Council,Central Support Services,,Property Services,Climate Change Levy,2307,Energy Costs,,CCL,11/11/2020,0000459976,71.43,Revenue,Total Gas & power Ltd,,
South Ribble Borough Council,Economic Development,,Property Services,Gas,2304,Energy Costs,,30/9 to 31/10/20,11/11/2020,0000459977,719.02,Revenue,Total Gas & power Ltd,,
South Ribble Borough Council,Central Support Services,,Property Services,Electricity,2303,Energy Costs,,30/9/20 to 31/10/20,25/11/2020,0000460072,"1,107.60",Revenue,Total Gas & power Ltd,,
South Ribble Borough Council,Central Support Services,,Property Services,Climate Change Levy,2307,Energy Costs,,CCL,25/11/2020,0000460072,126.41,Revenue,Total Gas & power Ltd,,
South Ribble Borough Council,Open Spaces,,Property Services,Electricity,2303,Energy Costs,,1/10/20 to 31/10/20,25/11/2020,0000460073,604.06,Revenue,Total Gas & power Ltd,,
South Ribble Borough Council,Open Spaces,,Property Services,Climate Change Levy,2307,Energy Costs,,CCL,25/11/2020,0000460073,27.09,Revenue,Total Gas & power Ltd,,
South Ribble Borough Council,Open Spaces,,Property Services,Electricity,2303,Energy Costs,,4/8/20 to 3/11/20,27/11/2020,0000460075,270.77,Revenue,Total Gas & power Ltd,,
South Ribble Borough Council,Open Spaces,,Property Services,Electricity,2303,Energy Costs,,4/8/20 to 3/11/20,27/11/2020,0000460077,309.13,Revenue,Total Gas & power Ltd,,
South Ribble Borough Council,Open Spaces,,Property Services,Electricity,2303,Energy Costs,,4/8/20 to 3/11/20,27/11/2020,0000460079,689.09,Revenue,Total Gas & power Ltd,,
South Ribble Borough Council,Open Spaces,,Property Services,Climate Change Levy,2307,Energy Costs,,CCL,27/11/2020,0000460079,34.20,Revenue,Total Gas & power Ltd,,
South Ribble Borough Council,Open Spaces,,Property Services,Electricity,2303,Energy Costs,,4/8/20 to 3/11/20,25/11/2020,0000460086,"2,713.72",Revenue,Total Gas & power Ltd,,
South Ribble Borough Council,Open Spaces,,Property Services,Climate Change Levy,2307,Energy Costs,,CCL,25/11/2020,0000460086,135.93,Revenue,Total Gas & power Ltd,,
South Ribble Borough Council,Central Support Services,,Property Services,Electricity,2303,Energy Costs,,1/10/20 to 31/10/20,25/11/2020,0000460091,"3,371.38",Revenue,Total Gas & power Ltd,,
South Ribble Borough Council,Central Support Services,,Property Services,Climate Change Levy,2307,Energy Costs,,CCL,25/11/2020,0000460091,181.64,Revenue,Total Gas & power Ltd,,
South Ribble Borough Council,Economic Development,,Property Services,Electricity,2303,Energy Costs,,1/10/20 to 31/10/20,25/11/2020,0000460094,"1,310.97",Revenue,Total Gas & power Ltd,,
South Ribble Borough Council,Economic Development,,Property Services,Climate Change Levy,2307,Energy Costs,,CCL,25/11/2020,0000460094,62.36,Revenue,Total Gas & power Ltd,,
South Ribble Borough Council,Central Support Services,,Property Services,Electricity,2303,Energy Costs,,1/10/20 to 31/10/20,25/11/2020,0000460095,"2,596.58",Revenue,Total Gas & power Ltd,,
South Ribble Borough Council,Central Support Services,,Property Services,Climate Change Levy,2307,Energy Costs,,CCL,25/11/2020,0000460095,146.05,Revenue,Total Gas & power Ltd,,
South Ribble Borough Council,Open Spaces,,Property Services,Gas,2304,Energy Costs,,31/7/20 to 31/10/20,25/11/2020,0000460121,365.64,Revenue,Total Gas & power Ltd,,
South Ribble Borough Council,Culture & Heritage,,Property Services,Gas,2304,Energy Costs,,31/7/20 to 31/10/20,18/11/2020,0000460143,463.95,Revenue,Total Gas & power Ltd,,
South Ribble Borough Council,Development Control,,Planning,Consultancy Fees,4541,Services,,Viability assessment at Carrwood Way Walton Le Dale,18/11/2020,0000460015,"1,000.00",Revenue,Trebbi Continuum Limited,,
South Ribble Borough Council,Central Support Services,,Neighbourhood Admin & Support,Operational Equip & Tools,4010,Furniture- Equip & Materials,,TUDOR PROFESSIONAL BYPASS LOPPER 24`` - CON LOP 24,13/11/2020,0000460044,81.00,Revenue,Tudor (UK) Ltd t/a Tudor Environmental,,
South Ribble Borough Council,Central Support Services,,Neighbourhood Admin & Support,Materials General,4040,Furniture- Equip & Materials,,CABLE TIE 370mm x 7.6mm (PACK OF 100) - FX CF370HD,13/11/2020,0000460044,81.30,Revenue,Tudor (UK) Ltd t/a Tudor Environmental,,
South Ribble Borough Council,Central Support Services,,Neighbourhood Admin & Support,Operational Equip & Tools,4010,Furniture- Equip & Materials,,RAKE - SPRINGBOK BULLDOG PREMIER  20 TINES 48`` WOODEN HANDLE - CON L/RAKE,13/11/2020,0000460044,102.88,Revenue,Tudor (UK) Ltd t/a Tudor Environmental,,
South Ribble Borough Council,Open Spaces,,Area 3 - Parks/Leyland East West,Operational Equip & Tools,4010,Furniture- Equip & Materials,,"Quazar Man At Work 750mm var,prov QZ564/750V",13/11/2020,0000460047,543.60,Revenue,Tudor (UK) Ltd t/a Tudor Environmental,,
South Ribble Borough Council,Open Spaces,,Area 3 - Parks/Leyland East West,Operational Equip & Tools,4010,Furniture- Equip & Materials,,Quazar Non-standard Variant 750mm `Mobile Works` - QZVNS750,13/11/2020,0000460047,86.00,Revenue,Tudor (UK) Ltd t/a Tudor Environmental,,
South Ribble Borough Council,Open Spaces,,Area 3 - Parks/Leyland East West,Operational Equip & Tools,4010,Furniture- Equip & Materials,,Quazar END Variant 750mm - QZVAR750/END,13/11/2020,0000460047,65.60,Revenue,Tudor (UK) Ltd t/a Tudor Environmental,,
South Ribble Borough Council,Street Cleansing,,Area 1 - Penwortham Western Parishes,External Contractors Charges,4570,Services,,Sign Cleaning - Borough Bypasses - October 2020 12th - 16th October 19th - 21st October ,25/11/2020,0000459943,"1,596.00",Revenue,ULTRA CLEAN CONSERVATORIES,,
South Ribble Borough Council,Capital,,Housing,Capital Grant,C570,Deferrd Chgs-Improvemnt Grants,,DFG WORKS TO BATHROOM AND RAMP AT ADDRESS REDACTED THROUGH FLOOR LIFT CUSTOMER TO PAY 234.00,18/11/2020,0000460178,"9,000.00",Revenue,Ultra Restore Ltd,,
South Ribble Borough Council,Surplus or Deficit on Trading,,Property Services,Reactive Repair & Maintenance,2020,Premises Repair & Mtne,,To Supply 7 fit 1 x 7kw Wall Mounted air conditioning system to ADDRESS REDACTED as quotation of 17th September 2020,11/11/2020,0000460005,"3,655.00",Revenue,UNIVERSAL COOLING LTD,,
South Ribble Borough Council,Democratic Represent and  Mgnt,,Property Services,Rental,4012,Furniture- Equip & Materials,,2020 / 2021 annual contract for the monthly rental of hot drinks machines at the civic centre including environmental charge.,11/11/2020,0000459942,372.89,Revenue,VENDING ENTERPRISES,,
South Ribble Borough Council,Economic Development,,Property Services,Reactive Repair & Maintenance,2020,Premises Repair & Mtne,,Please provide goods as per quotation OD98081 dated 24th June 2020 as requested by NAMES REDACTED Quotation in euros.,30/11/2020,0000459852,"2,459.42",Revenue,VITABRI S A,,
South Ribble Borough Council,Surplus or Deficit on Trading,,Property Services,Agency Staff,1121,Salaries,,Estates Surveyor consultancy fees for NAME REDACTED from 1st July 2020 for a period of 4 months 4 days per week,11/11/2020,0000459941,"1,857.59",Revenue,Vivid Resourcing,,
South Ribble Borough Council,Surplus or Deficit on Trading,,Property Services,Agency Fee,4529,Services,,Recruitment agency costs for the introduction of NAME REDACTED. As per NAMES REDACTED,18/11/2020,0000460139,"14,000.00",Revenue,Vivid Resourcing,,
South Ribble Borough Council,Surplus or Deficit on Trading,,Property Services,Agency Staff,1121,Salaries,,To cover  invoices relating to NAME REDACTED until the end of contract  - previous order closed. As per NAME REDACTED,27/11/2020,0000460231,"1,943.34",Revenue,Vivid Resourcing,,
South Ribble Borough Council,Central Support Services,,Information Services,Network and Security,4247,Communications & Comuting,,01 nov 20,04/11/2020,0000459860,"2,404.20",Revenue,VODAFONE RE:CABLE & WIRELESS UK,,
South Ribble Borough Council,Central Support Services,,Information Services,Network and Security,4247,Communications & Comuting,,27 Oct 2020,11/11/2020,0000459895,"2,252.86",Revenue,VODAFONE RE:CABLE & WIRELESS UK,,
South Ribble Borough Council,Central Support Services,,Information Services,Telecomms- land lines,4269,Communications & Comuting,,26 Oct 2020,11/11/2020,0000459896,"3,062.88",Revenue,VODAFONE RE:CABLE & WIRELESS UK,,
South Ribble Borough Council,Open Spaces,,Area 3 - Parks/Leyland East West,Plants Trees & Shrubs,4046,Furniture- Equip & Materials,,SPRING BEDDING PLANTS + BULBS 2021 as per schedule Please deliver all plants together in one delivery w/c  5th Oct 2020.,13/11/2020,0000459966,"2,617.95",Revenue,Walkers Oakfield Nurseries,,
South Ribble Borough Council,Elections,,Democratic Services,Polling Centre Costs,4421,Miscellaneous Expenses,,"Services provided by West Lancashire DC on behalf of South Ribble BC for the UKPGE 12 Dec 2019, inc � prep, staff and hiring",11/11/2020,0000460060,"6,105.00",Revenue,West Lancashire District Council,,
South Ribble Borough Council,Elections,,Democratic Services,Polling Card Costs,4423,Miscellaneous Expenses,,"Services provided by West Lancashire DC on behalf of South Ribble BC for the UKPGE 12 Dec 2019, inc � prep, staff and hiring",11/11/2020,0000460060,"5,202.90",Revenue,West Lancashire District Council,,
South Ribble Borough Council,Elections,,Democratic Services,Polling Other Costs,4425,Miscellaneous Expenses,,"Services provided by West Lancashire DC on behalf of South Ribble BC for the UKPGE 12 Dec 2019, inc � prep, staff and hiring",11/11/2020,0000460060,"1,271.00",Revenue,West Lancashire District Council,,
South Ribble Borough Council,Open Spaces,,Area 3 - Parks/Leyland East West,External Contractors Charges,4570,Services,,Removal of 1 X Ash Tree at Pope Lane Penwortham,18/11/2020,0000460161,"1,545.00",Revenue,WESTFIELD TREE SERVICES LTD,,
South Ribble Borough Council,Open Spaces,,Area 3 - Parks/Leyland East West,GM Refurbishment,4657,Expenses,,1 No 5901-070 Universal Joint  Assembly (4 Chains Version) c/w fixings,20/11/2020,0000460309,832.00,Revenue,WICKSTEED LEISURE LTD,,
South Ribble Borough Council,Open Spaces,,Area 3 - Parks/Leyland East West,GM Refurbishment,4657,Expenses,,4 No 4061-091 Chain Assembly (Single Chain) @ 47.00,20/11/2020,0000460309,188.00,Revenue,WICKSTEED LEISURE LTD,,
South Ribble Borough Council,Open Spaces,,Area 3 - Parks/Leyland East West,GM Refurbishment,4657,Expenses,,4 No 3621-002 Small Dee Shackle and Security Pin @ 11.00,20/11/2020,0000460309,44.00,Revenue,WICKSTEED LEISURE LTD,,
South Ribble Borough Council,Open Spaces,,Area 3 - Parks/Leyland East West,GM Refurbishment,4657,Expenses,,1 No 5084-020 Pendulum Swing Basket - 950mm,20/11/2020,0000460309,759.00,Revenue,WICKSTEED LEISURE LTD,,
South Ribble Borough Council,Open Spaces,,Area 3 - Parks/Leyland East West,GM Refurbishment,4657,Expenses,,1 No 3711-002 Aluminium End Cap for Fantasy Fun Run,20/11/2020,0000460309,11.00,Revenue,WICKSTEED LEISURE LTD,,
South Ribble Borough Council,Open Spaces,,Area 3 - Parks/Leyland East West,GM Refurbishment,4657,Expenses,,2 No 2171-111 M8 x 8 cup point grub screw @ 0.90p,20/11/2020,0000460309,1.80,Revenue,WICKSTEED LEISURE LTD,,
South Ribble Borough Council,Open Spaces,,Area 3 - Parks/Leyland East West,GM Refurbishment,4657,Expenses,,Carriage,20/11/2020,0000460309,159.46,Revenue,WICKSTEED LEISURE LTD,,
South Ribble Borough Council,Open Spaces,,Area 3 - Parks/Leyland East West,GM Refurbishment,4657,Expenses,,x3 spring assemblies(including shroud) with fixings for alloy body spring mobiles as per quotation on the 16/10/20. ,20/11/2020,0000460310,463.86,Revenue,WICKSTEED LEISURE LTD,,
South Ribble Borough Council,Open Spaces,,Area 3 - Parks/Leyland East West,GM Refurbishment,4657,Expenses,,x3 spring assemblies(including shroud) with fixings for alloy body spring mobiles as per quotation on the 16/10/20. ,20/11/2020,0000460310,463.86,Revenue,WICKSTEED LEISURE LTD,,
South Ribble Borough Council,Open Spaces,,Area 3 - Parks/Leyland East West,GM Refurbishment,4657,Expenses,,x3 spring assemblies(including shroud) with fixings for alloy body spring mobiles as per quotation on the 16/10/20. ,20/11/2020,0000460310,477.92,Revenue,WICKSTEED LEISURE LTD,,
South Ribble Borough Council,Open Spaces,,Area 3 - Parks/Leyland East West,Commemorative Features,4019,Furniture- Equip & Materials,,10 x standard rectangular stainless steel plaques @ 25.00 each,06/11/2020,0000459284,250.00,Revenue,WOODSTOCK SIGNS,,
